Workbook

Sheet 1. Utility_Info_
AB1: Algoma Power Inc.
AB2: Atikokan Hydro Inc.
AB3: Attawapiskat Power Corporation
AB4: Bluewater Power Distribution Corp.
AB5: Brant County Power
AB6: Brantford Power Inc.
AB7: Burlington Hydro Inc.
AB8: Cambridge and North Dumfries Hydro
AB9: Canadian Niagara Power Inc. – Eastern Ontario Power/Fort Erie/Port Colborne
AB10: Centre Wellington Hydro Ltd.
AB11: Chapleau Public Utilities Corporation
AB12: COLLUS Power Corp.
AB13: Cooperative Hydro Embrun Inc.
AB14: E.L.K. Energy Inc.
C15: Utility Name | D15: Alectra Utilities Corporation - PowerStream Rate Zone | AB15: Enersource Hydro Mississauga Inc.
AB16: Entegrus Powerlines Inc.
C17: Assigned EB Number | D17: EB-2025-0252 | AB17: ENWIN Utilities Ltd.
AB18: Erie Thames Powerlines Corp.
C19: Name and Title | D19: Natalie Yeates, Director, Regulatory Affairs | AB19: Espanola Regional Hydro Distribution Corporation
AB20: Essex Powerlines Corporation
C21: Phone Number | D21: 416-617-1959 | AB21: Festival Hydro Inc.
AB22: Fort Albany Power Corporation
C23: Email Address | D23: natalie.yeates@alectrautilities.com | AB23: Fort Frances Power Corporation
AB24: Greater Sudbury Hydro Inc.
C25: Date | AB25: Grimsby Power Inc.
AB26: Guelph Hydro Electric Systems Inc.
C27: ICM Project | D27: 2024 - Cable Replacement / Injection | AB27: Haldimand County Hydro Inc.
AB28: Halton Hills Hydro Inc.
AB29: Hearst Power Distribution Co. Ltd.
A30: Note: Drop-down lists are shaded blue; Input cells are shaded green.
AB32: Horizon Utilities Corporation
AB33: Hydro 2000 Inc.
AB34: Hydro Hawkesbury Inc.
AB35: Hydro One Brampton Networks Inc.
AB36: Hydro One Networks Inc.
AB37: Hydro One Remote Communities Inc.
AB38: Hydro Ottawa Limited
AB39: Innisfil Hydro Dist. Systems Limited
AB40: Kashechewan Power Corporation
AB41: Kenora Hydro Electric Corporation Ltd.
AB42: Kingston Hydro Corporation
AB43: Kitchener-Wilmot Hydro Inc.
AB44: Lakefront Utilities Inc.
AB45: Lakeland Power Distribution Ltd.
AB46: London Hydro Inc.
AB47: Midland Power Utility Corporation
AB48: Milton Hydro Distribution Inc.
AB49: Newmarket – Tay Power Distribution Ltd.
AB50: Niagara Peninsula Energy Inc.
AB51: Niagara-on-the-Lake Hydro Inc.
AB52: Norfolk Power Distribution Ltd.
AB53: North Bay Hydro Distribution Limited
AB54: Northern Ontario Wires Inc.
AB55: Oakville Hydro Distribution Inc.
AB56: Orangeville Hydro Limited
AB57: Orillia Power Distribution Corp.
AB58: Oshawa PUC Networks Inc.
AB59: Ottawa River Power Corporation
AB60: Parry Sound Power Corporation
AB61: Peterborough Distribution Inc.
AB62: PowerStream Inc.
AB63: PUC Distribution Inc.
AB64: Renfrew Hydro Inc.
AB65: Rideau St. Lawrence Distribution Inc.
AB66: St. Thomas Energy Inc.
AB67: Sioux Lookout Hydro Inc.
AB68: Thunder Bay Hydro Electricity Distribution
AB69: Tillsonburg Hydro Inc.
AB70: Toronto Hydro-Electric System Limited
AB71: Veridian Connections Inc.
AB72: Wasaga Distribution Inc.
AB73: Waterloo North Hydro Inc.
AB74: Welland Hydro Electric System Corp.
AB75: Wellington North Power Inc.
AB76: West Coast Huron Energy Inc.
AB77: Westario Power Inc.
AB78: Whitby Hydro Electric Corporation
AB79: Woodstock Hydro Services Inc.
AB81: Alectra Utilities Corporation - PowerStream Rate Zone
AB82: Alectra Utilities Corporation - Brampton Rate Zone
AB83: Alectra Utilities Corporation - Enersource Rate Zone
AB84: Alectra Utilities Corporation - Horizon Rate Zone
AB85: Alectra Utilities Corporation - Guelph Rate Zone

Sheet 2. ICM_Costs
G18: 2024 | I18: 2015 | K18: Total
B19: Sheet 2: ICM Capital Cost Data | G19: Audited Actual | I19: Forecast
B39: 1 | C39: Capital Costs
E40: Asset Type
C41: SYSTEM ACCESS | E41: Asset type must be selected to enable calculations | G41: =IF(ISBLANK(G19),"",G19) -> Audited Actual | I41: =IF(ISBLANK(I19),"",I19) -> Forecast
K42: =SUM(G42,I42) -> 0
K44: =SUM(G44,I44) -> 0
K46: =SUM(G46,I46) -> 0
K48: =SUM(G48,I48) -> 0
K50: =SUM(G50,I50) -> 0
K52: 0
K54: 0
K56: 0
K58: 0
K60: 0
C62: Total System Access | G62: =SUM(G42,G44,G46,G48,G50,G52,G54,G56,G58,G60) -> 0 | I62: =SUM(I42,I44,I46,I48,I50,I52,I54,I56,I58,I60) -> 0 | K62: =SUM(K42,K44,K46,K48,K50,K52,K54,K56,K58,K60) -> 0
E64: =E40 -> Asset Type
C65: SYSTEM RENEWAL | G65: =G41 -> Audited Actual | I65: =I41 -> Forecast
E66: UG Transformers | G66: 766013.6385 | K66: =SUM(G66,I66) -> 766013.6385
E68: UG Conduit | G68: 2127815.663 | K68: =SUM(G68,I68) -> 2127815.663
E70: UG Prim XLPE TR | G70: 3404505.06 | K70: =SUM(G70,I70) -> 3404505.06
E72: UG Sec In Duct/Svs | G72: 851126.265 | K72: =SUM(G72,I72) -> 851126.265
E74: Air Insulated Switchgear | G74: 680901.012 | K74: =SUM(G74,I74) -> 680901.012
E76: Solid Dielectric Switchgear | G76: 680901.012 | K76: =SUM(G76,I76) -> 680901.012
E78: UG Cable Injection | G78: 5418039.38 | K78: =SUM(G78,I78) -> 5418039.38
K80: =SUM(G80,I80) -> 0
K82: =SUM(G82,I82) -> 0
K84: 0
C86: Total System Renewal | G86: =SUM(G66,G68,G70,G72,G74,G76,G78,G80,G82,G84) -> 13929302.03 | I86: =SUM(I66,I68,I70,I72,I74,I76,I78,I80,I82,I84) -> 0 | K86: =SUM(K66,K68,K70,K72,K74,K76,K78,K80,K82,K84) -> 13929302.03
E88: =E64 -> Asset Type
C89: SYSTEM SERVICE | G89: =G65 -> Audited Actual | I89: =I65 -> Forecast
K90: =SUM(G90,I90) -> 0
K92: =SUM(G92,I92) -> 0
K94: =SUM(G94,I94) -> 0
K96: =SUM(G96,I96) -> 0
K98: =SUM(G98,I98) -> 0
K100: =SUM(G100,I100) -> 0
K102: =SUM(G102,I102) -> 0
K104: =SUM(G104,I104) -> 0
K106: =SUM(G106,I106) -> 0
K108: 0
C110: Total System Service | G110: =SUM(G90,G92,G94,G96,G98,G100,G102,G104,G106,G108) -> 0 | I110: =SUM(I90,I92,I94,I96,I98,I100,I102,I104,I106,I108) -> 0 | K110: =SUM(K90,K92,K94,K96,K98,K100,K102,K104,K106,K108) -> 0
E112: =E88 -> Asset Type
C113: GENERAL PLANT | G113: Audited Actual | I113: =I89 -> Forecast
K115: =SUM(G115,I115) -> 0
K117: =SUM(G117,I117) -> 0
K119: =SUM(G119,I119) -> 0
K121: =SUM(G121,I121) -> 0
K123: =SUM(G123,I123) -> 0
K125: =SUM(G125,I125) -> 0
K127: =SUM(G127,I127) -> 0
K129: =SUM(G129,I129) -> 0
K131: =SUM(G131,I131) -> 0
K133: 0
C135: Total General Plant | G135: =SUM(G115,G117,G119,G121,G123,G125,G127,G129,G131,G133) -> 0 | I135: =SUM(I115,I117,I119,I121,I123,I125,I127,I129,I131,I133) -> 0 | K135: =SUM(K115,K117,K119,K121,K123,K125,K127,K129,K131,K133) -> 0
E137: =E112 -> Asset Type
G138: Audited Actual | I138: =I113 -> Forecast
K140: =SUM(G140,I140) -> 0
K142: =SUM(G142,I142) -> 0
K144: =SUM(G144,I144) -> 0
K146: =SUM(G146,I146) -> 0
K148: =SUM(G148,I148) -> 0
K150: =SUM(G150,I150) -> 0
K152: =SUM(G152,I152) -> 0
K154: =SUM(G154,I154) -> 0
K156: =SUM(G156,I156) -> 0
K158: 0
C160: Total | G160: =SUM(G140,G142,G144,G146,G148,G150,G152,G154,G156,G158) -> 0 | I160: =SUM(I140,I142,I144,I146,I148,I150,I152,I154,I156,I158) -> 0 | K160: =SUM(K140,K142,K144,K146,K148,K150,K152,K154,K156,K158) -> 0
C162: Total Capital Costs Related to Incremental Capital Projects (ICP) | G162: =G160+G135+G110+G86+G62 -> 13929302.03 | I162: =SUM(I62,I86,I110,I135,I160) -> 0 | K162: =SUM(K62,K86,K110,K135,K160) -> 13929302.03
E164: =E137 -> Asset Type
C165: OTHER CAPITAL COST | G165: Audited Actual | I165: =I138 -> Forecast
C167: A | K167: =SUM(G167,I167) -> 0
C169: B | K169: =SUM(G169,I169) -> 0
C171: C | K171: =SUM(G171,I171) -> 0
C173: Total Other Capital Costs | G173: =SUM(G167,G169,G171) -> 0 | I173: =SUM(I167,I169,I171) -> 0 | K173: =SUM(K167,K169,K171) -> 0
C175: Total ICM Capital Costs | G175: =G162+G173 -> 13929302.03 | I175: =I162+I173 -> 0 | K175: =K162+K173 -> 13929302.03
B178: 2 | C178: Aggregated ICM Costs by Category
C180: Asset Account | D180: Capital | E180: Account
C182: 120227 | D182: OH Swtch & Cpctrs | E182: 1835 | G182: =SUMIF($E$42:$E$171,$D182,G$42:G$171) -> 0 | I182: =SUMIF($E$42:$E$171,$D182,I$42:I$171) -> 0 | K182: =SUM(G182:J182) -> 0
C184: 120223 | D184: Concrete Poles | E184: 1830 | G184: =SUMIF($E$42:$E$171,$D184,G$42:G$171) -> 0 | I184: =SUMIF($E$42:$E$171,$D184,I$42:I$171) -> 0 | K184: =SUM(G184:J184) -> 0
C186: 120221 | D186: Wood Poles | E186: 1830 | G186: =SUMIF($E$42:$E$171,$D186,G$42:G$171) -> 0 | I186: =SUMIF($E$42:$E$171,$D186,I$42:I$171) -> 0 | K186: =SUM(G186:J186) -> 0
C188: 120225 | D188: OH Transformers | E188: 1850 | G188: =SUMIF($E$42:$E$171,$D188,G$42:G$171) -> 0 | I188: =SUMIF($E$42:$E$171,$D188,I$42:I$171) -> 0 | K188: =SUM(G188:J188) -> 0
C190: 120224 | D190: OH Prim Cond & Dev | E190: 1835 | G190: =SUMIF($E$42:$E$171,$D190,G$42:G$171) -> 0 | I190: =SUMIF($E$42:$E$171,$D190,I$42:I$171) -> 0 | K190: =SUM(G190:J190) -> 0
C192: 120226 | D192: OH Sec Cond & Dev | E192: 1855 | G192: =SUMIF($E$42:$E$171,$D192,G$42:G$171) -> 0 | I192: =SUMIF($E$42:$E$171,$D192,I$42:I$171) -> 0 | K192: =SUM(G192:J192) -> 0
C194: 120243 | D194: UG Transformers | E194: 1850 | G194: =SUMIF($E$42:$E$171,$D194,G$42:G$171) -> 766013.6385 | I194: =SUMIF($E$42:$E$171,$D194,I$42:I$171) -> 0 | K194: =SUM(G194:J194) -> 766013.6385
C196: 120245 | D196: UG Conduit | E196: 1840 | G196: =SUMIF($E$42:$E$171,$D196,G$42:G$171) -> 2127815.663 | I196: =SUMIF($E$42:$E$171,$D196,I$42:I$171) -> 0 | K196: =SUM(G196:J196) -> 2127815.663
C198: 120241.XLPETR | D198: UG Prim XLPE TR | E198: 1845 | G198: =SUMIF($E$42:$E$171,$D198,G$42:G$171) -> 3404505.06 | I198: =SUMIF($E$42:$E$171,$D198,I$42:I$171) -> 0 | K198: =SUM(G198:J198) -> 3404505.06
C200: 120242.DB | D200: UG Sec - Dir Buried | E200: 1845 | G200: =SUMIF($E$42:$E$171,$D200,G$42:G$171) -> 0 | I200: =SUMIF($E$42:$E$171,$D200,I$42:I$171) -> 0 | K200: =SUM(G200:J200) -> 0
C202: 120242.IDSERV | D202: UG Sec In Duct/Svs | E202: 1845 | G202: =SUMIF($E$42:$E$171,$D202,G$42:G$171) -> 851126.265 | I202: 0 | K202: 851126.265
C204: 120248 | D204: Air Insulated Switchgear | E204: 1845 | G204: 680901.012 | I204: 0 | K204: 680901.012
C206: 120249 | D206: Solid Dielectric Switchgear | E206: 1845 | G206: 680901.012 | I206: 0 | K206: 680901.012
I207: 0 | K207: =SUM(G207:J207) -> 0
C208: 120244 | D208: UG Cable Injection | E208: 1845 | G208: 5418039.38 | I208: 0 | K208: 5418039.38
C210: 120063.MS | D210: MS Integrated P&C Systems | E210: 1820 | G210: 0
C212: 120021.MS | D212: MS Building Improvements | E212: 1820 | G212: 0
C214: 130104 | D214: Capital Contributions Paid | E214: 1609 | G214: 0
D219: Total Capital Costs | G219: =SUM(G182:G217) -> 13929302.03 | I219: =SUM(I182:I217) -> 0 | K219: =SUM(K182:K217) -> 13929302.03
G220: =IF(G219=G175," ","Error") ->  | I220: =IF(I219=I175,"","Error") ->  | K220: =IF(K219=K175,"","Error") -> 

Sheet 3. Cost_of_Service_Parameters
B17: Sheet 3: Parameters and Rates
G19: 2024 | I19: 2025 | K19: 2026
B20: Cost of Capital
C21: Capital Structure
D22: Deemed Short-term Debt Capitalization | G22: 0.04 | I22: 0.04 | K22: 0.04
D23: Deemed Long-term Debt Capitalization | G23: =60%-G22 -> 0.56 | I23: =G23-(I22-G22) -> 0.56 | K23: =I23-(K22-I22) -> 0.56
D24: Deemed Equity Capitalization | G24: =100%-G23-G25-G22 -> 0.4 | I24: =100%-I23-I25-I22 -> 0.4 | K24: =100%-K23-K25-K22 -> 0.4
D25: Preferred Shares
C26: Total | G26: =SUM(G22:G25) -> 1 | I26: =SUM(I22:I25) -> 1 | K26: =SUM(K22:K25) -> 1
C28: Cost of Capital Parameters
D29: Deemed Short-term Debt Rate | G29: 0.0176 | I29: 0.0176 | K29: 0.0176
D30: Long-term Debt Rate (actual/embedded/deemed)1 | G30: 0.03882503715 | I30: 0.03882504 | K30: 0.03882504
D31: Target Return on Equity (ROE) | G31: 0.0878 | I31: 0.0878 | K31: 0.0878
D32: Return on Preferred Shares
C33: WACC | G33: =SUMPRODUCT(G22:G25,G29:G32) -> 0.0575660208 | I33: =SUMPRODUCT(I22:I25,I29:I32) -> 0.0575660224 | K33: =SUMPRODUCT(K22:K25,K29:K32) -> 0.0575660224
B35: Working Capital Allowance
C36: Working Capital Allowance Rate | G36: 0.075 | I36: =G36 -> 0.075 | K36: =I36 -> 0.075
C37: (% of the sum of Cost of Power + controllable expenses)
B39: Taxes/PILs
C40: Aggregate Corporate Income Tax Rate | G40: 0.265 | I40: 0.265 | K40: 0.265
C41: Capital Tax (until July 1st, 2010) | G41: 0 | I41: 0 | K41: 0
B43: Depreciation Rates | E43: Account
B44: (expressed as expected useful life in years)
C45: OH Swtch & Cpctrs | E45: 1835 | G45: 38 | I45: 35 | K45: 35
C46: - rate (%) | G46: 0.02631578947 | I46: 0.02857142857 | K46: 0.02857142857
C47: Concrete Poles | E47: 1830 | G47: 51 | I47: 60 | K47: 60
C48: - rate (%) | G48: 0.01960784314 | I48: 0.01666666667 | K48: 0.01666666667
C49: Wood Poles | E49: 1830 | G49: 44 | I49: 45 | K49: 45
C50: - rate (%) | G50: 0.02272727273 | I50: 0.02222222222 | K50: 0.02222222222
C51: OH Transformers | E51: 1850 | G51: 41 | I51: 45 | K51: 45
C52: - rate (%) | G52: 0.0243902439 | I52: 0.02222222222 | K52: 0.02222222222
C53: OH Prim Cond & Dev | E53: 1835 | G53: 45 | I53: 50 | K53: 50
C54: - rate (%) | G54: 0.02222222222 | I54: 0.02 | K54: 0.02
C55: OH Sec Cond & Dev | E55: 1855 | G55: 48 | I55: 50 | K55: 50
C56: - rate (%) | G56: 0.02083333333 | I56: 0.02 | K56: 0.02
C57: UG Transformers | E57: 1850 | G57: 32 | I57: 30 | K57: 30
C58: - rate (%) | G58: 0.03125 | I58: 0.03333333333 | K58: 0.03333333333
C59: UG Conduit | E59: 1840 | G59: 52 | I59: 60 | K59: 60
C60: - rate (%) | G60: 0.01923076923 | I60: 0.01666666667 | K60: 0.01666666667
C61: UG Prim XLPE TR | E61: 1845 | G61: 38 | I61: 45 | K61: 45
C62: - rate (%) | G62: 0.02631578947 | I62: 0.02222222222 | K62: 0.02222222222
C63: UG Sec - Dir Buried | E63: 1845 | G63: 31 | I63: 30 | K63: 30
C64: - rate (%) | G64: 0.03225806452 | I64: 0.03333333333 | K64: 0.03333333333
C65: UG Sec In Duct/Svs | E65: 1845 | G65: 37 | I65: 40 | K65: 40
C66: - rate (%) | G66: 0.02702702703 | I66: 0.025 | K66: 0.025
C67: Air Insulated Switchgear | E67: 1845 | G67: 39 | I67: 35 | K67: 35
C68: - rate (%) | G68: 0.02564102564 | I68: 0.02857142857 | K68: 0.02857142857
C69: Solid Dielectric Switchgear | E69: 1845 | G69: 42 | I69: 45 | K69: 45
C70: - rate (%) | G70: 0.02380952381 | I70: 0.02222222222 | K70: 0.02222222222
C71: UG Cable Injection | E71: 1845 | G71: 24 | I71: 20 | K71: 20
C72: - rate (%) | G72: 0.04166666667 | I72: 0.05 | K72: 0.05
C73: MS Integrated P&C Systems | E73: 1820 | G73: 36 | I73: 15 | K73: 15
C74: - rate (%) | G74: 0.02777777778 | I74: 0.06666666667 | K74: 0.06666666667
C75: MS Building Improvements | E75: 1820 | G75: 21 | I75: 25 | K75: 25
C76: - rate (%) | G76: 0.04761904762 | I76: 0.04 | K76: 0.04
C77: Capital Contributions Paid | E77: 1609 | G77: 40 | I77: 40 | K77: 40
C78: - rate (%) | G78: 0.025 | I78: 0.025 | K78: 0.025
B82: CCA Rates
C83: OH Swtch & Cpctrs - CCA Class | G83: 47 | I83: 47 | K83: 47
C84: OH Swtch & Cpctrs - CCA Rate | G84: 0.08 | I84: 0.08 | K84: 0.08
C86: Concrete Poles - CCA Class | G86: 47 | I86: 47 | K86: 47
C87: Concrete Poles - CCA Rate | G87: 0.08 | I87: 0.08 | K87: 0.08
C89: Wood Poles - CCA Class | G89: 47 | I89: 47 | K89: 47
C90: Wood Poles - CCA Rate | G90: 0.08 | I90: 0.08 | K90: 0.08
C92: OH Transformers - CCA Class | G92: 47 | I92: 47 | K92: 47
C93: OH Transformers - CCA Rate | G93: 0.08 | I93: 0.08 | K93: 0.08
C95: OH Prim Cond & Dev - CCA Class | G95: 47 | I95: 47 | K95: 47
C96: OH Prim Cond & Dev - CCA Rate | G96: 0.08 | I96: 0.08 | K96: 0.08
C98: OH Sec Cond & Dev - CCA Class | G98: 47 | I98: 47 | K98: 47
C99: OH Sec Cond & Dev - CCA Rate | G99: 0.08 | I99: 0.08 | K99: 0.08
C101: UG Transformers - CCA Class | G101: 47 | I101: 47 | K101: 47
C102: UG Transformers - CCA Rate | G102: 0.08 | I102: 0.08 | K102: 0.08
C104: OH Services - CCA Class | G104: 47 | I104: 47 | K104: 47
C105: OH Services - CCA Rate | G105: 0.08 | I105: 0.08 | K105: 0.08
C107: UG Conduit - CCA Class | G107: 47 | I107: 47 | K107: 47
C108: UG Conduit - CCA Rate | G108: 0.08 | I108: 0.08 | K108: 0.08
C110: UG Prim XLPE TR - CCA Class | G110: 47 | I110: 47 | K110: 47
C111: UG Prim XLPE TR - CCA Rate | G111: 0.08 | I111: 0.08 | K111: 0.08
C113: UG Sec - Dir Buried - CCA Class | G113: 47 | I113: 47 | K113: 47
C114: UG Sec - Dir Buried - CCA Rate | G114: 0.08 | I114: 0.08 | K114: 0.08
C116: UG Sec In Duct/Svs - CCA Class | G116: 47 | I116: 47 | K116: 47
C117: UG Sec In Duct/Svs - CCA Rate | G117: 0.08 | I117: 0.08 | K117: 0.08
C119: Air Insulated Switchgear - CCA Class | G119: 47 | I119: 47 | K119: 47
C120: Air Insulated Switchgear - CCA Rate | G120: 0.08 | I120: 0.08 | K120: 0.08
C122: Solid Dielectric Switchgear - CCA Class | G122: 47 | I122: 47 | K122: 47
C123: Solid Dielectric Switchgear - CCA Rate | G123: 0.08 | I123: 0.08 | K123: 0.08
C125: UG Cable Injection - CCA Class | G125: 47 | I125: 47 | K125: 47
C126: UG Cable Injection - CCA Rate | G126: 0.08 | I126: 0.08 | K126: 0.08
C128: MS Integrated P&C Systems - CCA Class | G128: 47 | I128: 47 | K128: 47
C129: MS Integrated P&C Systems - CCA Rate | G129: 0.08 | I129: 0.08 | K129: 0.08
C131: MS Building Improvements - CCA Class | G131: 1 | I131: 1 | K131: 1
C132: MS Building Improvements - CCA Rate | G132: 0.04 | I132: 0.04 | K132: 0.04
C134: Capital Contributions Paid - CCA Class | G134: 47 | I134: 47 | K134: 47
C135: Capital Contributions Paid - CCA Rate | G135: 0.08 | I135: 0.08 | K135: 0.08
B138: Assumptions
B139: 1 | C139: Fiscal calendar year (January 1 to December 31) used.
B140: 3 | C140: Amortization is done on a striaght line basis and no "half-year" rule applied.

Sheet 4. ICM_Assets_and_Rate_Base
B17: Sheet 4: ICM Assets - Net Book Value
I18: ='3. Cost_of_Service_Parameters'!G19 -> 2024 | K18: 2025 | M18: 2026
B19: Net Fixed Assets - OH Swtch & Cpctrs
C21: Gross Book Value
D22: Opening Balance | K22: =I25 -> 0 | M22: =K25 -> 0
D23: Capital Additions during year (from ICM Costs) | I23: ='2. ICM_Costs'!G182 -> 0
D24: Retirements/Removals (if applicable)
D25: Closing Balance | I25: =I22+I23-I24 -> 0 | K25: =K22+K23-K24 -> 0 | M25: =M22+M23-M24 -> 0
C27: Accumulated Depreciation
D28: Opening Balance | K28: =I31 -> 0 | M28: =K31 -> 0
D29: Amortization expense during year | I29: =IF(ISERROR(-(I23/('3. Cost_of_Service_Parameters'!G45)+MIN((I22/'3. Cost_of_Service_Parameters'!G45),(I22+I28)))), 0, -(I23/('3. Cost_of_Service_Parameters'!G45)+MIN((I22/'3. Cost_of_Service_Parameters'!G45),(I22+I28)))) -> 0 | K29: =IF(ISERROR(-(K23/('3. Cost_of_Service_Parameters'!I45)+MIN((K22/'3. Cost_of_Service_Parameters'!I45),(K22+K28)))), 0, -(K23/('3. Cost_of_Service_Parameters'!I45)+MIN((K22/'3. Cost_of_Service_Parameters'!I45),(K22+K28)))) -> 0 | M29: =IF(ISERROR(-(M23/('3. Cost_of_Service_Parameters'!K45)+MIN((M22/'3. Cost_of_Service_Parameters'!K45),(M22+M28)))), 0, -(M23/('3. Cost_of_Service_Parameters'!K45)+MIN((M22/'3. Cost_of_Service_Parameters'!K45),(M22+M28)))) -> 0
D30: Retirements/Removals (if applicable)
D31: Closing Balance | I31: =I28+I29-I30 -> 0 | K31: =K28+K29-K30 -> 0 | M31: =M28+M29-M30 -> 0
C33: Net Book Value
D34: Opening Balance | I34: =I22+I28 -> 0 | K34: =I35 -> 0 | M34: =K35 -> 0
D35: Closing Balance | I35: =I25+I31 -> 0 | K35: =K25+K31 -> 0 | M35: =M25+M31 -> 0
D36: Incremental CAPEX | I36: =I35 -> 0 | K36: =AVERAGE(K34:K35) -> 0 | M36: =AVERAGE(M34:M35) -> 0
B38: Net Fixed Assets - Concrete Poles
C40: Gross Book Value
D41: Opening Balance | K41: =I44 -> 0 | M41: =K44 -> 0
D42: Capital Additions during year (from ICM Costs) | I42: ='2. ICM_Costs'!G184 -> 0
D43: Retirements/Removals (if applicable)
D44: Closing Balance | I44: =I41+I42-I43 -> 0 | K44: =K41+K42-K43 -> 0 | M44: =M41+M42-M43 -> 0
C46: Accumulated Depreciation
D47: Opening Balance | K47: =I50 -> 0 | M47: =K50 -> 0
D48: Amortization expense during year | I48: =IF(ISERROR(-(I42/('3. Cost_of_Service_Parameters'!G47)+MIN((I41/'3. Cost_of_Service_Parameters'!G47),(I41+I47)))), 0, -(I42/('3. Cost_of_Service_Parameters'!G47)+MIN((I41/'3. Cost_of_Service_Parameters'!G47),(I41+I47)))) -> 0 | K48: =IF(ISERROR(-(K42/('3. Cost_of_Service_Parameters'!I47*2)+MIN((K41/'3. Cost_of_Service_Parameters'!I47),(K41+K47)))), 0, -(K42/('3. Cost_of_Service_Parameters'!I47*2)+MIN((K41/'3. Cost_of_Service_Parameters'!I47),(K41+K47)))) -> 0 | M48: =IF(ISERROR(-(M42/('3. Cost_of_Service_Parameters'!K47*2)+MIN((M41/'3. Cost_of_Service_Parameters'!K47),(M41+M47)))), 0, -(M42/('3. Cost_of_Service_Parameters'!K47*2)+MIN((M41/'3. Cost_of_Service_Parameters'!K47),(M41+M47)))) -> 0
D49: Retirements/Removals (if applicable)
D50: Closing Balance | I50: =I47+I48-I49 -> 0 | K50: =K47+K48-K49 -> 0 | M50: =M47+M48-M49 -> 0
C52: Net Book Value
D53: Opening Balance | I53: =I41+I47 -> 0 | K53: =I54 -> 0 | M53: =K54 -> 0
D54: Closing Balance | I54: =I44+I50 -> 0 | K54: =K44+K50 -> 0 | M54: =M44+M50 -> 0
D55: Incremental CAPEX | I55: =I54 -> 0 | K55: =AVERAGE(K53:K54) -> 0 | M55: =AVERAGE(M53:M54) -> 0
B57: Net Fixed Assets - Wood Poles
C59: Gross Book Value
D60: Opening Balance | K60: =I63 -> 0 | M60: =K63 -> 0
D61: Capital Additions during year (from ICM Costs) | I61: ='2. ICM_Costs'!G186 -> 0
D62: Retirements/Removals (if applicable)
D63: Closing Balance | I63: =I60+I61-I62 -> 0 | K63: =K60+K61-K62 -> 0 | M63: =M60+M61-M62 -> 0
C65: Accumulated Depreciation
D66: Opening Balance | K66: =I69 -> 0 | M66: =K69 -> 0
D67: Amortization expense during year | I67: =IF(ISERROR(-(I61/('3. Cost_of_Service_Parameters'!G49)+MIN((I60/'3. Cost_of_Service_Parameters'!G49),(I60+I66)))), 0, -(I61/('3. Cost_of_Service_Parameters'!G49)+MIN((I60/'3. Cost_of_Service_Parameters'!G49),(I60+I66)))) -> 0 | K67: =IF(ISERROR(-(K61/('3. Cost_of_Service_Parameters'!I49*2)+MIN((K60/'3. Cost_of_Service_Parameters'!I49),(K60+K66)))), 0, -(K61/('3. Cost_of_Service_Parameters'!I49*2)+MIN((K60/'3. Cost_of_Service_Parameters'!I49),(K60+K66)))) -> 0 | M67: =IF(ISERROR(-(M61/('3. Cost_of_Service_Parameters'!K49*2)+MIN((M60/'3. Cost_of_Service_Parameters'!K49),(M60+M66)))), 0, -(M61/('3. Cost_of_Service_Parameters'!K49*2)+MIN((M60/'3. Cost_of_Service_Parameters'!K49),(M60+M66)))) -> 0
D68: Retirements/Removals (if applicable)
D69: Closing Balance | I69: =I66+I67-I68 -> 0 | K69: =K66+K67-K68 -> 0 | M69: =M66+M67-M68 -> 0
C71: Net Book Value
D72: Opening Balance | I72: =I60+I66 -> 0 | K72: =I73 -> 0 | M72: =K73 -> 0
D73: Closing Balance | I73: =I63+I69 -> 0 | K73: =K63+K69 -> 0 | M73: =M63+M69 -> 0
D74: Incremental CAPEX | I74: =I73 -> 0 | K74: =AVERAGE(K72:K73) -> 0 | M74: =AVERAGE(M72:M73) -> 0
B76: Net Fixed Assets - OH Transformers
C78: Gross Book Value
D79: Opening Balance | K79: =I82 -> 0 | M79: =K82 -> 0
D80: Capital Additions during year (from ICM Costs) | I80: ='2. ICM_Costs'!G188 -> 0
D81: Retirements/Removals (if applicable)
D82: Closing Balance | I82: =I79+I80-I81 -> 0 | K82: =K79+K80-K81 -> 0 | M82: =M79+M80-M81 -> 0
C84: Accumulated Depreciation
D85: Opening Balance | K85: =I88 -> 0 | M85: =K88 -> 0
D86: Amortization expense during year | I86: =IF(ISERROR(-(I80/('3. Cost_of_Service_Parameters'!G51)+MIN((I79/'3. Cost_of_Service_Parameters'!G51),(I79+I85)))), 0, -(I80/('3. Cost_of_Service_Parameters'!G51)+MIN((I79/'3. Cost_of_Service_Parameters'!G51),(I79+I85)))) -> 0 | K86: =IF(ISERROR(-(K80/('3. Cost_of_Service_Parameters'!I51*2)+MIN((K79/'3. Cost_of_Service_Parameters'!I51),(K79+K85)))), 0, -(K80/('3. Cost_of_Service_Parameters'!I51*2)+MIN((K79/'3. Cost_of_Service_Parameters'!I51),(K79+K85)))) -> 0 | M86: =IF(ISERROR(-(M80/('3. Cost_of_Service_Parameters'!K51*2)+MIN((M79/'3. Cost_of_Service_Parameters'!K51),(M79+M85)))), 0, -(M80/('3. Cost_of_Service_Parameters'!K51*2)+MIN((M79/'3. Cost_of_Service_Parameters'!K51),(M79+M85)))) -> 0
D87: Retirements/Removals (if applicable)
D88: Closing Balance | I88: =I85+I86-I87 -> 0 | K88: =K85+K86-K87 -> 0 | M88: =M85+M86-M87 -> 0
C90: Net Book Value
D91: Opening Balance | I91: =I79+I85 -> 0 | K91: =I92 -> 0 | M91: =K92 -> 0
D92: Closing Balance | I92: =I82+I88 -> 0 | K92: =K82+K88 -> 0 | M92: =M82+M88 -> 0
D93: Incremental CAPEX | I93: =I92 -> 0 | K93: =AVERAGE(K91:K92) -> 0 | M93: =AVERAGE(M91:M92) -> 0
B95: Net Fixed Assets - OH Prim Cond & Dev
C97: Gross Book Value
D98: Opening Balance | K98: =I101 -> 0 | M98: =K101 -> 0
D99: Capital Additions during year (from ICM Costs) | I99: ='2. ICM_Costs'!G190 -> 0
D100: Retirements/Removals (if applicable)
D101: Closing Balance | I101: =I98+I99-I100 -> 0 | K101: =K98+K99-K100 -> 0 | M101: =M98+M99-M100 -> 0
C103: Accumulated Depreciation
D104: Opening Balance | K104: =I107 -> 0 | M104: =K107 -> 0
D105: Amortization expense during year | I105: =IF(ISERROR(-(I99/('3. Cost_of_Service_Parameters'!G53)+MIN((I98/'3. Cost_of_Service_Parameters'!G53),(I98+I104)))), 0, -(I99/('3. Cost_of_Service_Parameters'!G53)+MIN((I98/'3. Cost_of_Service_Parameters'!G53),(I98+I104)))) -> 0 | K105: =IF(ISERROR(-(K99/('3. Cost_of_Service_Parameters'!I53*2)+MIN((K98/'3. Cost_of_Service_Parameters'!I53),(K98+K104)))), 0, -(K99/('3. Cost_of_Service_Parameters'!I53*2)+MIN((K98/'3. Cost_of_Service_Parameters'!I53),(K98+K104)))) -> 0 | M105: =IF(ISERROR(-(M99/('3. Cost_of_Service_Parameters'!K53*2)+MIN((M98/'3. Cost_of_Service_Parameters'!K53),(M98+M104)))), 0, -(M99/('3. Cost_of_Service_Parameters'!K53*2)+MIN((M98/'3. Cost_of_Service_Parameters'!K53),(M98+M104)))) -> 0
D106: Retirements/Removals (if applicable)
D107: Closing Balance | I107: =I104+I105-I106 -> 0 | K107: =K104+K105-K106 -> 0 | M107: =M104+M105-M106 -> 0
C109: Net Book Value
D110: Opening Balance | I110: =I98+I104 -> 0 | K110: =I111 -> 0 | M110: =K111 -> 0
D111: Closing Balance | I111: =I101+I107 -> 0 | K111: =K101+K107 -> 0 | M111: =M101+M107 -> 0
D112: Incremental CAPEX | I112: =I111 -> 0 | K112: =AVERAGE(K110:K111) -> 0 | M112: =AVERAGE(M110:M111) -> 0
B114: Net Fixed Assets - OH Sec Cond & Dev
C116: Gross Book Value
D117: Opening Balance | K117: =I120 -> 0 | M117: =K120 -> 0
D118: Capital Additions during year (from ICM Costs) | I118: ='2. ICM_Costs'!G192 -> 0
D119: Retirements/Removals (if applicable)
D120: Closing Balance | I120: =I117+I118-I119 -> 0 | K120: =K117+K118-K119 -> 0 | M120: =M117+M118-M119 -> 0
C122: Accumulated Depreciation
D123: Opening Balance | K123: =I126 -> 0 | M123: =K126 -> 0
D124: Amortization expense during year | I124: =IF(ISERROR(-(I118/('3. Cost_of_Service_Parameters'!G55)+MIN((I117/'3. Cost_of_Service_Parameters'!G55),(I117+I123)))), 0, -(I118/('3. Cost_of_Service_Parameters'!G55)+MIN((I117/'3. Cost_of_Service_Parameters'!G55),(I117+I123)))) -> 0 | K124: =IF(ISERROR(-(K118/('3. Cost_of_Service_Parameters'!I55*2)+MIN((K117/'3. Cost_of_Service_Parameters'!I55),(K117+K123)))), 0, -(K118/('3. Cost_of_Service_Parameters'!I55*2)+MIN((K117/'3. Cost_of_Service_Parameters'!I55),(K117+K123)))) -> 0 | M124: =IF(ISERROR(-(M118/('3. Cost_of_Service_Parameters'!K55*2)+MIN((M117/'3. Cost_of_Service_Parameters'!K55),(M117+M123)))), 0, -(M118/('3. Cost_of_Service_Parameters'!K55*2)+MIN((M117/'3. Cost_of_Service_Parameters'!K55),(M117+M123)))) -> 0
D125: Retirements/Removals (if applicable)
D126: Closing Balance | I126: =I123+I124-I125 -> 0 | K126: =K123+K124-K125 -> 0 | M126: =M123+M124-M125 -> 0
C128: Net Book Value
D129: Opening Balance | I129: =I117+I123 -> 0 | K129: =I130 -> 0 | M129: =K130 -> 0
D130: Closing Balance | I130: =I120+I126 -> 0 | K130: =K120+K126 -> 0 | M130: =M120+M126 -> 0
D131: Incremental CAPEX | I131: =I130 -> 0 | K131: =AVERAGE(K129:K130) -> 0 | M131: =AVERAGE(M129:M130) -> 0
B133: Net Fixed Assets - UG Transformers
C135: Gross Book Value
D136: Opening Balance | K136: =I139 -> 766013.6385 | M136: =K139 -> 766013.6385
D137: Capital Additions during year (from ICM Costs) | I137: ='2. ICM_Costs'!G194 -> 766013.6385
D138: Retirements/Removals (if applicable)
D139: Closing Balance | I139: =I136+I137-I138 -> 766013.6385 | K139: =K136+K137-K138 -> 766013.6385 | M139: =M136+M137-M138 -> 766013.6385
C141: Accumulated Depreciation
D142: Opening Balance | K142: =I145 -> -23937.9262 | M142: =K145 -> -49471.71415
D143: Amortization expense during year | I143: =IF(ISERROR(-(I137/('3. Cost_of_Service_Parameters'!G57)+MIN((I136/'3. Cost_of_Service_Parameters'!G57),(I136+I142)))), 0, -(I137/('3. Cost_of_Service_Parameters'!G57)+MIN((I136/'3. Cost_of_Service_Parameters'!G57),(I136+I142)))) -> -23937.9262 | K143: =IF(ISERROR(-(K137/('3. Cost_of_Service_Parameters'!I57*2)+MIN((K136/'3. Cost_of_Service_Parameters'!I57),(K136+K142)))), 0, -(K137/('3. Cost_of_Service_Parameters'!I57*2)+MIN((K136/'3. Cost_of_Service_Parameters'!I57),(K136+K142)))) -> -25533.78795 | M143: =IF(ISERROR(-(M137/('3. Cost_of_Service_Parameters'!K57*2)+MIN((M136/'3. Cost_of_Service_Parameters'!K57),(M136+M142)))), 0, -(M137/('3. Cost_of_Service_Parameters'!K57*2)+MIN((M136/'3. Cost_of_Service_Parameters'!K57),(M136+M142)))) -> -25533.78795
D144: Retirements/Removals (if applicable)
D145: Closing Balance | I145: =I142+I143-I144 -> -23937.9262 | K145: =K142+K143-K144 -> -49471.71415 | M145: =M142+M143-M144 -> -75005.5021
C147: Net Book Value
D148: Opening Balance | I148: =I136+I142 -> 0 | K148: =I149 -> 742075.7123 | M148: =K149 -> 716541.9243
D149: Closing Balance | I149: =I139+I145 -> 742075.7123 | K149: =K139+K145 -> 716541.9243 | M149: =M139+M145 -> 691008.1364
D150: Incremental CAPEX | I150: =I149 -> 742075.7123 | K150: =AVERAGE(K148:K149) -> 729308.8183 | M150: =AVERAGE(M148:M149) -> 703775.0304
B152: Net Fixed Assets - UG Conduit
C154: Gross Book Value
D155: Opening Balance | K155: =I158 -> 2127815.663 | M155: =K158 -> 2127815.663
D156: Capital Additions during year (from ICM Costs) | I156: ='2. ICM_Costs'!G196 -> 2127815.663
D157: Retirements/Removals (if applicable)
D158: Closing Balance | I158: =I155+I156-I157 -> 2127815.663 | K158: =K155+K156-K157 -> 2127815.663 | M158: =M155+M156-M157 -> 2127815.663
C160: Accumulated Depreciation
D161: Opening Balance | K161: =I164 -> -40919.53197 | M161: =K164 -> -76383.12635
D162: Amortization expense during year | I162: =IF(ISERROR(-(I156/('3. Cost_of_Service_Parameters'!G59)+MIN((I155/'3. Cost_of_Service_Parameters'!G59),(I155+I161)))), 0, -(I156/('3. Cost_of_Service_Parameters'!G59)+MIN((I155/'3. Cost_of_Service_Parameters'!G59),(I155+I161)))) -> -40919.53197 | K162: =IF(ISERROR(-(K156/('3. Cost_of_Service_Parameters'!I59*2)+MIN((K155/'3. Cost_of_Service_Parameters'!I59),(K155+K161)))), 0, -(K156/('3. Cost_of_Service_Parameters'!I59*2)+MIN((K155/'3. Cost_of_Service_Parameters'!I59),(K155+K161)))) -> -35463.59438 | M162: =IF(ISERROR(-(M156/('3. Cost_of_Service_Parameters'!K59*2)+MIN((M155/'3. Cost_of_Service_Parameters'!K59),(M155+M161)))), 0, -(M156/('3. Cost_of_Service_Parameters'!K59*2)+MIN((M155/'3. Cost_of_Service_Parameters'!K59),(M155+M161)))) -> -35463.59438
D163: Retirements/Removals (if applicable)
D164: Closing Balance | I164: =I161+I162-I163 -> -40919.53197 | K164: =K161+K162-K163 -> -76383.12635 | M164: =M161+M162-M163 -> -111846.7207
C166: Net Book Value
D167: Opening Balance | I167: =I155+I161 -> 0 | K167: =I168 -> 2086896.131 | M167: =K168 -> 2051432.536
D168: Closing Balance | I168: =I158+I164 -> 2086896.131 | K168: =K158+K164 -> 2051432.536 | M168: =M158+M164 -> 2015968.942
D169: Incremental CAPEX | I169: =I168 -> 2086896.131 | K169: =AVERAGE(K167:K168) -> 2069164.333 | M169: =AVERAGE(M167:M168) -> 2033700.739
B171: Net Fixed Assets - UG Prim XLPE TR
C173: Gross Book Value
D174: Opening Balance | K174: =I177 -> 3404505.06 | M174: =K177 -> 3404505.06
D175: Capital Additions during year (from ICM Costs) | I175: ='2. ICM_Costs'!G198 -> 3404505.06
D176: Retirements/Removals (if applicable)
D177: Closing Balance | I177: =I174+I175-I176 -> 3404505.06 | K177: =K174+K175-K176 -> 3404505.06 | M177: =M174+M175-M176 -> 3404505.06
C179: Accumulated Depreciation
D180: Opening Balance | K180: =I183 -> -89592.23842 | M180: =K183 -> -165247.9064
D181: Amortization expense during year | I181: =IF(ISERROR(-(I175/('3. Cost_of_Service_Parameters'!G61)+MIN((I174/'3. Cost_of_Service_Parameters'!G61),(I174+I180)))), 0, -(I175/('3. Cost_of_Service_Parameters'!G61)+MIN((I174/'3. Cost_of_Service_Parameters'!G61),(I174+I180)))) -> -89592.23842 | K181: =IF(ISERROR(-(K175/('3. Cost_of_Service_Parameters'!I61*2)+MIN((K174/'3. Cost_of_Service_Parameters'!I61),(K174+K180)))), 0, -(K175/('3. Cost_of_Service_Parameters'!I61*2)+MIN((K174/'3. Cost_of_Service_Parameters'!I61),(K174+K180)))) -> -75655.668 | M181: =IF(ISERROR(-(M175/('3. Cost_of_Service_Parameters'!K61*2)+MIN((M174/'3. Cost_of_Service_Parameters'!K61),(M174+M180)))), 0, -(M175/('3. Cost_of_Service_Parameters'!K61*2)+MIN((M174/'3. Cost_of_Service_Parameters'!K61),(M174+M180)))) -> -75655.668
D182: Retirements/Removals (if applicable)
D183: Closing Balance | I183: =I180+I181-I182 -> -89592.23842 | K183: =K180+K181-K182 -> -165247.9064 | M183: =M180+M181-M182 -> -240903.5744
C185: Net Book Value
D186: Opening Balance | I186: =I174+I180 -> 0 | K186: =I187 -> 3314912.822 | M186: =K187 -> 3239257.154
D187: Closing Balance | I187: =I177+I183 -> 3314912.822 | K187: =K177+K183 -> 3239257.154 | M187: =M177+M183 -> 3163601.486
D188: Incremental CAPEX | I188: =I187 -> 3314912.822 | K188: =AVERAGE(K186:K187) -> 3277084.988 | M188: =AVERAGE(M186:M187) -> 3201429.32
B191: Net Fixed Assets - UG Sec - Dir Buried
C193: Gross Book Value
D194: Opening Balance | K194: =I197 -> 0 | M194: =K197 -> 0
D195: Capital Additions during year (from ICM Costs) | I195: ='2. ICM_Costs'!G200 -> 0
D196: Retirements/Removals (if applicable)
D197: Closing Balance | I197: =I194+I195-I196 -> 0 | K197: =K194+K195-K196 -> 0 | M197: =M194+M195-M196 -> 0
C199: Accumulated Depreciation
D200: Opening Balance | K200: =I203 -> 0 | M200: =K203 -> 0
D201: Amortization expense during year | I201: =IF(ISERROR(-(I195/('3. Cost_of_Service_Parameters'!G63)+MIN((I194/'3. Cost_of_Service_Parameters'!G63),(I194+I200)))), 0, -(I195/('3. Cost_of_Service_Parameters'!G63)+MIN((I194/'3. Cost_of_Service_Parameters'!G63),(I194+I200)))) -> 0 | K201: =IF(ISERROR(-(K195/('3. Cost_of_Service_Parameters'!I63*2)+MIN((K194/'3. Cost_of_Service_Parameters'!I63),(K194+K200)))), 0, -(K195/('3. Cost_of_Service_Parameters'!I63*2)+MIN((K194/'3. Cost_of_Service_Parameters'!I63),(K194+K200)))) -> 0 | M201: =IF(ISERROR(-(M195/('3. Cost_of_Service_Parameters'!K63*2)+MIN((M194/'3. Cost_of_Service_Parameters'!K63),(M194+M200)))), 0, -(M195/('3. Cost_of_Service_Parameters'!K63*2)+MIN((M194/'3. Cost_of_Service_Parameters'!K63),(M194+M200)))) -> 0
D202: Retirements/Removals (if applicable)
D203: Closing Balance | I203: =I200+I201-I202 -> 0 | K203: =K200+K201-K202 -> 0 | M203: =M200+M201-M202 -> 0
C205: Net Book Value
D206: Opening Balance | I206: =I194+I200 -> 0 | K206: =I207 -> 0 | M206: =K207 -> 0
D207: Closing Balance | I207: =I197+I203 -> 0 | K207: =K197+K203 -> 0 | M207: =M197+M203 -> 0
D208: Incremental CAPEX | I208: =I207 -> 0 | K208: =AVERAGE(K206:K207) -> 0 | M208: =AVERAGE(M206:M207) -> 0
B211: Net Fixed Assets - UG Sec In Duct/Svs
C213: Gross Book Value
D214: Opening Balance | K214: =I217 -> 851126.265 | M214: =K217 -> 851126.265
D215: Capital Additions during year (from ICM Costs) | I215: ='2. ICM_Costs'!G202 -> 851126.265
D216: Retirements/Removals (if applicable)
D217: Closing Balance | I217: =I214+I215-I216 -> 851126.265 | K217: =K214+K215-K216 -> 851126.265 | M217: =M214+M215-M216 -> 851126.265
C219: Accumulated Depreciation
D220: Opening Balance | K220: =I223 -> -23003.41257 | M220: =K223 -> -44281.56919
D221: Amortization expense during year | I221: =IF(ISERROR(-(I215/('3. Cost_of_Service_Parameters'!G65)+MIN((I214/'3. Cost_of_Service_Parameters'!G65),(I214+I220)))), 0, -(I215/('3. Cost_of_Service_Parameters'!G65)+MIN((I214/'3. Cost_of_Service_Parameters'!G65),(I214+I220)))) -> -23003.41257 | K221: =IF(ISERROR(-(K215/('3. Cost_of_Service_Parameters'!I65*2)+MIN((K214/'3. Cost_of_Service_Parameters'!I65),(K214+K220)))), 0, -(K215/('3. Cost_of_Service_Parameters'!I65*2)+MIN((K214/'3. Cost_of_Service_Parameters'!I65),(K214+K220)))) -> -21278.15662 | M221: =IF(ISERROR(-(M215/('3. Cost_of_Service_Parameters'!K65*2)+MIN((M214/'3. Cost_of_Service_Parameters'!K65),(M214+M220)))), 0, -(M215/('3. Cost_of_Service_Parameters'!K65*2)+MIN((M214/'3. Cost_of_Service_Parameters'!K65),(M214+M220)))) -> -21278.15662
D222: Retirements/Removals (if applicable)
D223: Closing Balance | I223: =I220+I221-I222 -> -23003.41257 | K223: =K220+K221-K222 -> -44281.56919 | M223: =M220+M221-M222 -> -65559.72582
C225: Net Book Value
D226: Opening Balance | I226: =I214+I220 -> 0 | K226: =I227 -> 828122.8524 | M226: =K227 -> 806844.6958
D227: Closing Balance | I227: =I217+I223 -> 828122.8524 | K227: =K217+K223 -> 806844.6958 | M227: =M217+M223 -> 785566.5392
D228: Incremental CAPEX | I228: =I227 -> 828122.8524 | K228: =AVERAGE(K226:K227) -> 817483.7741 | M228: =AVERAGE(M226:M227) -> 796205.6175
B231: Net Fixed Assets - Air Insulated Switchgear
C233: Gross Book Value
D234: Opening Balance | K234: =I237 -> 680901.012 | M234: =K237 -> 680901.012
D235: Capital Additions during year (from ICM Costs) | I235: ='2. ICM_Costs'!G204 -> 680901.012
D236: Retirements/Removals (if applicable)
D237: Closing Balance | I237: =I234+I235-I236 -> 680901.012 | K237: =K234+K235-K236 -> 680901.012 | M237: =M234+M235-M236 -> 680901.012
C239: Accumulated Depreciation
D240: Opening Balance | K240: =I243 -> -17459.00031 | M240: =K243 -> -36913.31494
D241: Amortization expense during year | I241: =IF(ISERROR(-(I235/('3. Cost_of_Service_Parameters'!G67)+MIN((I234/'3. Cost_of_Service_Parameters'!G67),(I234+I240)))), 0, -(I235/('3. Cost_of_Service_Parameters'!G67)+MIN((I234/'3. Cost_of_Service_Parameters'!G67),(I234+I240)))) -> -17459.00031 | K241: =IF(ISERROR(-(K235/('3. Cost_of_Service_Parameters'!I67*2)+MIN((K234/'3. Cost_of_Service_Parameters'!I67),(K234+K240)))), 0, -(K235/('3. Cost_of_Service_Parameters'!I67*2)+MIN((K234/'3. Cost_of_Service_Parameters'!I67),(K234+K240)))) -> -19454.31463 | M241: =IF(ISERROR(-(M235/('3. Cost_of_Service_Parameters'!K67*2)+MIN((M234/'3. Cost_of_Service_Parameters'!K67),(M234+M240)))), 0, -(M235/('3. Cost_of_Service_Parameters'!K67*2)+MIN((M234/'3. Cost_of_Service_Parameters'!K67),(M234+M240)))) -> -19454.31463
D242: Retirements/Removals (if applicable)
D243: Closing Balance | I243: =I240+I241-I242 -> -17459.00031 | K243: =K240+K241-K242 -> -36913.31494 | M243: =M240+M241-M242 -> -56367.62956
C245: Net Book Value
D246: Opening Balance | I246: =I234+I240 -> 0 | K246: =I247 -> 663442.0117 | M246: =K247 -> 643987.6971
D247: Closing Balance | I247: =I237+I243 -> 663442.0117 | K247: =K237+K243 -> 643987.6971 | M247: =M237+M243 -> 624533.3824
D248: Incremental CAPEX | I248: =I247 -> 663442.0117 | K248: =AVERAGE(K246:K247) -> 653714.8544 | M248: =AVERAGE(M246:M247) -> 634260.5397
B251: Net Fixed Assets - Solid Dielectric Switchgear
C253: Gross Book Value
D254: Opening Balance | K254: =I257 -> 680901.012 | M254: =K257 -> 680901.012
D255: Capital Additions during year (from ICM Costs) | I255: ='2. ICM_Costs'!G206 -> 680901.012
D256: Retirements/Removals (if applicable)
D257: Closing Balance | I257: =I254+I255-I256 -> 680901.012 | K257: =K254+K255-K256 -> 680901.012 | M257: =M254+M255-M256 -> 680901.012
C259: Accumulated Depreciation
D260: Opening Balance | K260: =I263 -> -8105.964429 | M260: =K263 -> -23237.09803
D261: Amortization expense during year | I261: =IF(ISERROR(-(I255/('3. Cost_of_Service_Parameters'!G69*2)+MIN((I254/'3. Cost_of_Service_Parameters'!G69),(I254+I260)))), 0, -(I255/('3. Cost_of_Service_Parameters'!G69*2)+MIN((I254/'3. Cost_of_Service_Parameters'!G69),(I254+I260)))) -> -8105.964429 | K261: =IF(ISERROR(-(K255/('3. Cost_of_Service_Parameters'!I69*2)+MIN((K254/'3. Cost_of_Service_Parameters'!I69),(K254+K260)))), 0, -(K255/('3. Cost_of_Service_Parameters'!I69*2)+MIN((K254/'3. Cost_of_Service_Parameters'!I69),(K254+K260)))) -> -15131.1336 | M261: =IF(ISERROR(-(M255/('3. Cost_of_Service_Parameters'!K69*2)+MIN((M254/'3. Cost_of_Service_Parameters'!K69),(M254+M260)))), 0, -(M255/('3. Cost_of_Service_Parameters'!K69*2)+MIN((M254/'3. Cost_of_Service_Parameters'!K69),(M254+M260)))) -> -15131.1336
D262: Retirements/Removals (if applicable)
D263: Closing Balance | I263: =I260+I261-I262 -> -8105.964429 | K263: =K260+K261-K262 -> -23237.09803 | M263: =M260+M261-M262 -> -38368.23163
C265: Net Book Value
D266: Opening Balance | I266: =I254+I260 -> 0 | K266: =I267 -> 672795.0476 | M266: =K267 -> 657663.914
D267: Closing Balance | I267: =I257+I263 -> 672795.0476 | K267: =K257+K263 -> 657663.914 | M267: =M257+M263 -> 642532.7804
D268: Incremental CAPEX | I268: =I267 -> 672795.0476 | K268: =AVERAGE(K266:K267) -> 665229.4808 | M268: =AVERAGE(M266:M267) -> 650098.3472
B271: Net Fixed Assets - UG Cable Injection
C273: Gross Book Value
D274: Opening Balance | K274: =I277 -> 5418039.38 | M274: =K277 -> 5418039.38
... 60 more rows

Sheet 5. UCC_Calculation
A18: Sheet 6: CCA For PILs Calculation
A20: UCC/Class 47 | D20: ='3. Cost_of_Service_Parameters'!G19 -> 2024
D21: ='2. ICM_Costs'!G19 -> Audited Actual
A23: Opening UCC | D23: 0
A24: Capital Additions | D24: ='2. ICM_Costs'!G219 -> 13929302.03
A25: Retirements/Removals (if applicable)
A26: UCC Full Year | D26: =SUM(D23:D24)-D25 -> 13929302.03
A29: CCA Rate Class | D29: ='3. Cost_of_Service_Parameters'!G83 -> 47
A30: CCA Rate | D30: ='3. Cost_of_Service_Parameters'!G84 -> 0.08
A31: CCA | D31: =D26*D30 -> 1114344.162
A32: Closing UCC | D32: =IF((D26-D31)<0, 0, D26-D31) -> 12814957.87
A34: UCC/Class 8 | D34: =D20 -> 2024
D35: Audited Actual
A37: Opening UCC | D37: 0
A38: Capital Additions RTU's | D38: 0
A39: Retirements/Removals (if applicable)
A40: UCC Full Year | D40: =SUM(D37:D38)-D39 -> 0
A43: CCA Rate Class | D43: ='3. Cost_of_Service_Parameters'!G107 -> 47
A44: CCA Rate | D44: ='3. Cost_of_Service_Parameters'!G108 -> 0.08
A45: CCA | D45: =D40*D44 -> 0
A46: Closing UCC | D46: =IF((D40-D45)<0, 0, D40-D45) -> 0

Sheet 6. ICMIRR_2024
A11: Sheet 6: | C11: Incremental Capital Adjustment
I24: 2024 OEB Approved
C26: Return on Rate Base
C27: Incremental Capital CAPEX | F27: ='2. ICM_Costs'!G219 -> 13929302.03 | G27: B | K27: 17273507.71
C28: Depreciation Expense | F28: =-'4. ICM_Assets_and_Rate_Base'!I357 -> 315893.8943 | G28: C | K28: 383855.7269
C29: Incremental Capital CAPEX to be included in Rate Base | F29: =(F27+(F27-F28))/2 -> 13771355.08 | G29: D = B - C | K29: =(K27+(K27-K28))/2 -> 17081579.85
C31: Deemed ShortTerm Debt % | D31: ='3. Cost_of_Service_Parameters'!G22 -> 0.04 | E31: E | F31: =F29*D31 -> 550854.2033 | G31: G = D * E | I31: =D31 -> 0.04 | K31: =K29*I31 -> 683263.1939
C32: Deemed Long Term Debt % | D32: ='3. Cost_of_Service_Parameters'!G23 -> 0.56 | E32: F | F32: =F29*D32 -> 7711958.846 | G32: H = D * F | I32: =D32 -> 0.56 | K32: =K29*I32 -> 9565684.714
C34: Short Term Interest | D34: ='3. Cost_of_Service_Parameters'!G29 -> 0.0176 | E34: I | F34: =F31*D34 -> 9695.033978 | G34: K = G * I | I34: =D34 -> 0.0176 | K34: =K31*I34 -> 12025.43221
C35: Long Term Interest | D35: ='3. Cost_of_Service_Parameters'!G30 -> 0.03882503715 | E35: J | F35: =F32*D35 -> 299417.0887 | G35: L = H * J | I35: =D35 -> 0.03882503715 | K35: =K32*I35 -> 371388.0644
C37: Return on Rate Base - Interest | F37: =SUM(F34:F35) -> 309112.1227 | G37: M = K + L | K37: =SUM(K34:K35) -> 383413.4966
C40: Deemed Equity % | D40: ='3. Cost_of_Service_Parameters'!G24 -> 0.4 | E40: N | F40: =F29*D40 -> 5508542.033 | G40: P = D * N | I40: 0.4 | K40: =K29*I40 -> 6832631.939
C42: Return on Rate Base -Equity | D42: ='3. Cost_of_Service_Parameters'!G31 -> 0.0878 | E42: O | F42: =F40*D42 -> 483649.9905 | G42: Q = P * O | I42: =D42 -> 0.0878 | K42: =K40*I42 -> 599905.0842
C44: Return on Rate Base - Total | F44: =F37+F42 -> 792762.1132 | G44: R = M + Q | K44: =K37+K42 -> 983318.5808
C48: Amortization Expense
C50: Amortization Expense - Incremental | E50: C | F50: =F28 -> 315893.8943 | G50: S | K50: =K28 -> 383855.7269
C53: Grossed up PIL's
C55: Regulatory Taxable Income | E55: O | F55: =F42 -> 483649.9905 | G55: T | K55: =K42 -> 599905.0842
C57: Add Back Amortization Expense | E57: S | F57: =F50 -> 315893.8943 | G57: U | K57: =K50 -> 383855.7269
C59: Deduct CCA | F59: ='5. UCC_Calculation'!D31+'5. UCC_Calculation'!D45 -> 1114344.162 | G59: V | K59: 1381880.617
C61: Incremental Taxable Income | F61: =F55+F57-F59 -> -314800.2776 | G61: W = T + U - V | K61: =K55+K57-K59 -> -398119.8057
C63: Current Tax Rate (F1.1 Z-Factor Tax Changes) | D63: ='3. Cost_of_Service_Parameters'!G40 -> 0.265 | E63: X | I63: =D63 -> 0.265
C65: PIL's Before Gross Up | F65: =F61*D63 -> -83422.07356 | G65: Y = W * X | K65: =K61*I63 -> -105501.7485
C67: Incremental Grossed Up PIL's | F67: =F65/(1-D63) -> -113499.4198 | G67: Z = Y / ( 1 - X ) | K67: =K65/(1-I63) -> -143539.7939
C70: Ontario Capital Tax
C71: Incremental Capital CAPEX | F71: =F27 -> 13929302.03 | G71: AA | K71: =K27 -> 17273507.71
C73: Less : Available Capital Exemption (if any) | F73: 0 | G73: AB | K73: 0
C75: Incremental Capital CAPEX subject to OCT | F75: =F71-F73 -> 13929302.03 | G75: AC = AA - AB | K75: =K71-K73 -> 17273507.71
C77: Ontario Capital Tax Rate (F1.1 Z-Factor Tax Changes) | D77: 0 | E77: AD
C79: Incremental Ontario Capital Tax | F79: =F75*D77 -> 0 | G79: AE = AC * AD | K79: =K75*I77 -> 0
C82: Incremental Revenue Requirement
C83: Return on Rate Base - Total | E83: Q | F83: =F44 -> 792762.1132 | G83: AF | K83: =K44 -> 983318.5808
C84: Amortization Expense - Total | E84: S | F84: =F50 -> 315893.8943 | G84: AG | K84: =K50 -> 383855.7269
C85: Incremental Grossed Up PIL's | E85: Z | F85: =F67 -> -113499.4198 | G85: AH | K85: =K67 -> -143539.7939
C86: Incremental Ontario Capital Tax | E86: AE | F86: =F79 -> 0 | G86: AI | K86: =K79 -> 0
C88: Incremental Revenue Requirement | F88: =SUM(F83:F86) -> 995156.5877 | G88: AJ = AF + AG + AH + AI | K88: =SUM(K83:K86) -> 1223634.514

Sheet 7. Rate Riders Revs
B13: This worksheet calculates the rate rider revenues.
B17: Sheet 7: ICM Rate Rider Revenues
B22: Prescribed Interest Rates | C22: Approved Deferral and Variance Accounts | D22: CWIP | F22: Date | G22: Year | H22: Quarter | J22: Opening Balance (Principal) | K22: Rate Rider Revenues | L22: Interest Rate | M22: Interest | N22: Principal & Interest (Cumm.) | P22: Board Approved ICM Rate Rider | Q22: Board Approved ICM Rate Rider (Cumm.)
B24: 2018 Q1 | C24: 0.015 | D24: 0.0299 | F24: 2018-01-01 | G24: =YEAR(F24) -> 2018 | H24: =IF(MONTH(F24)=0,"",IF(MONTH(F24)<4,"Q1",IF(MONTH(F24)<7,"Q2",IF(MONTH(F24)<10,"Q3","Q4")))) -> Q1 | I24: =CONCATENATE(G24," ",H24) -> 2018 Q1 | J24: 0 | L24: =VLOOKUP(I24,$B$22:$D$59,2) -> 0.015 | M24: =ROUND(J24*L24/12,2) -> 0 | N24: =K24+M24 -> 0 | Q24: =P24 -> 0
B25: 2018 Q2 | C25: 0.0189 | D25: 0.0335 | F25: 2018-02-01 | G25: =YEAR(F25) -> 2018 | H25: =IF(MONTH(F25)=0,"",IF(MONTH(F25)<4,"Q1",IF(MONTH(F25)<7,"Q2",IF(MONTH(F25)<10,"Q3","Q4")))) -> Q1 | I25: =CONCATENATE(G25," ",H25) -> 2018 Q1 | J25: =J24+K24 -> 0 | L25: 0.015 | M25: =ROUND(J25*L25/12,2) -> 0 | N25: =N24+K25+M25 -> 0 | Q25: =Q24+P25 -> 0
B26: 2018 Q3 | C26: 0.0189 | D26: 0.0335 | F26: 2018-03-01 | G26: 2018 | H26: Q1 | I26: 2018 Q1 | J26: =J25+K25 -> 0 | L26: 0.015 | M26: 0 | N26: =N25+K26+M26 -> 0 | Q26: =Q25+P26 -> 0
B27: 2018 Q4 | C27: 0.0217 | D27: 0.0335 | F27: 2018-04-01 | G27: 2018 | H27: Q2 | I27: 2018 Q2 | J27: 0 | L27: 0.0189 | M27: 0 | N27: 0 | Q27: 0
B28: 2019 Q1 | C28: 0.0245 | D28: 0.0382 | F28: 2018-05-01 | G28: 2018 | H28: Q2 | I28: 2018 Q2 | J28: 0 | L28: 0.0189 | M28: 0 | N28: 0 | Q28: 0
B29: 2019 Q2 | C29: 0.0218 | D29: 0.0339 | F29: 2018-06-01 | G29: 2018 | H29: Q2 | I29: 2018 Q2 | J29: 0 | L29: 0.0189 | M29: 0 | N29: 0 | Q29: 0
B30: 2019 Q3 | C30: 0.0218 | D30: 0.0288 | F30: 2018-07-01 | G30: 2018 | H30: Q3 | I30: 2018 Q3 | J30: 0 | L30: 0.0189 | M30: 0 | N30: 0 | Q30: 0
B31: 2019 Q4 | C31: 0.0218 | D31: 0.0288 | F31: 2018-08-01 | G31: 2018 | H31: Q3 | I31: 2018 Q3 | J31: 0 | L31: 0.0189 | M31: 0 | N31: 0 | Q31: 0
B32: 2020 Q1 | C32: 0.0218 | D32: 0.0288 | F32: 2018-09-01 | G32: 2018 | H32: Q3 | I32: 2018 Q3 | J32: 0 | L32: 0.0189 | M32: 0 | N32: 0 | Q32: 0
B33: 2020 Q2 | C33: 0.0218 | D33: 0.0248 | F33: 2018-10-01 | G33: 2018 | H33: Q4 | I33: 2018 Q4 | J33: 0 | L33: 0.0217 | M33: 0 | N33: 0 | Q33: 0
B34: 2020 Q3 | C34: 0.0057 | D34: 0.0248 | F34: 2018-11-01 | G34: 2018 | H34: Q4 | I34: 2018 Q4 | J34: 0 | L34: 0.0217 | M34: 0 | N34: 0 | Q34: 0
B35: 2020 Q4 | C35: 0.0057 | D35: 0.0203 | F35: 2018-12-01 | G35: 2018 | H35: Q4 | I35: 2018 Q4 | J35: 0 | L35: 0.0217 | M35: 0 | N35: 0 | Q35: 0
B36: 2021 Q1 | C36: 0.0057 | D36: 0.0203 | F36: 2019-01-01 | G36: 2019 | H36: Q1 | I36: 2019 Q1 | J36: 0 | L36: 0.0245 | M36: 0 | N36: 0 | Q36: 0
B37: 2021 Q2 | C37: 0.0057 | D37: 0.0229 | F37: 2019-02-01 | G37: 2019 | H37: Q1 | I37: 2019 Q1 | J37: 0 | L37: 0.0245 | M37: 0 | N37: 0 | Q37: 0
B38: 2021 Q3 | C38: 0.0057 | D38: 0.0229 | F38: 2019-03-01 | G38: 2019 | H38: Q1 | I38: 2019 Q1 | J38: 0 | L38: 0.0245 | M38: 0 | N38: 0 | Q38: 0
B39: 2021 Q4 | C39: 0.0057 | D39: 0.0229 | F39: 2019-04-01 | G39: 2019 | H39: Q2 | I39: 2019 Q2 | J39: 0 | L39: 0.0218 | M39: 0 | N39: 0 | Q39: 0
B40: 2022 Q1 | C40: 0.0057 | D40: 0.0272 | F40: 2019-05-01 | G40: 2019 | H40: Q2 | I40: 2019 Q2 | J40: 0 | L40: 0.0218 | M40: 0 | N40: 0 | Q40: 0
B41: 2022 Q2 | C41: 0.0102 | D41: 0.0331 | F41: 2019-06-01 | G41: 2019 | H41: Q2 | I41: 2019 Q2 | J41: 0 | L41: 0.0218 | M41: 0 | N41: 0 | Q41: 0
B42: 2022 Q3 | C42: 0.022 | D42: 0.0466 | F42: 2019-07-01 | G42: 2019 | H42: Q3 | I42: 2019 Q3 | J42: 0 | L42: 0.0218 | M42: 0 | N42: 0 | Q42: 0
B43: 2022 Q4 | C43: 0.0387 | D43: 0.0501 | F43: 2019-08-01 | G43: 2019 | H43: Q3 | I43: 2019 Q3 | J43: 0 | L43: 0.0218 | M43: 0 | N43: 0 | Q43: 0
B44: 2023 Q1 | C44: 0.0473 | D44: 0.0501 | F44: 2019-09-01 | G44: 2019 | H44: Q3 | I44: 2019 Q3 | J44: 0 | L44: 0.0218 | M44: 0 | N44: 0 | Q44: 0
B45: 2023 Q2 | C45: 0.0498 | D45: 0.0501 | F45: 2019-10-01 | G45: 2019 | H45: Q4 | I45: 2019 Q4 | J45: 0 | L45: 0.0218 | M45: 0 | N45: 0 | Q45: 0
B46: 2023 Q3 | C46: 0.0498 | D46: 0.0501 | F46: 2019-11-01 | G46: 2019 | H46: Q4 | I46: 2019 Q4 | J46: 0 | L46: 0.0218 | M46: 0 | N46: 0 | Q46: 0
B47: 2023 Q4 | C47: 0.0549 | D47: 0.0548 | F47: 2019-12-01 | G47: 2019 | H47: Q4 | I47: 2019 Q4 | J47: 0 | L47: 0.0218 | M47: 0 | N47: 0 | Q47: 0
B48: 2024 Q1 | C48: 0.0549 | D48: 0.0548 | F48: 2020-01-01 | G48: 2020 | H48: Q1 | I48: 2020 Q1 | J48: 0 | L48: 0.0218 | M48: =ROUND(J48*L48/12,2) -> 0 | N48: =N47+K48+M48 -> 0 | Q48: =Q47+P48 -> 0
B49: 2024 Q2 | C49: 0.0549 | D49: 0.0598 | F49: 2020-02-01 | G49: 2020 | H49: Q1 | I49: 2020 Q1 | J49: 0 | L49: 0.0218 | M49: 0 | N49: 0 | Q49: 0
B50: 2024 Q3 | C50: 0.052 | D50: 0.0598 | F50: 2020-03-01 | G50: 2020 | H50: Q1 | I50: 2020 Q1 | J50: 0 | L50: 0.0218 | M50: 0 | N50: 0 | Q50: 0
B51: 2024 Q4 | C51: 0.044 | D51: 0.0455 | F51: 2020-04-01 | G51: 2020 | H51: Q2 | I51: 2020 Q2 | J51: 0 | L51: 0.0218 | M51: 0 | N51: 0 | Q51: 0
B52: 2025 Q1 | C52: 0.0364 | D52: 0.0423 | F52: 2020-05-01 | G52: 2020 | H52: Q2 | I52: 2020 Q2 | J52: 0 | L52: 0.0218 | M52: 0 | N52: 0 | Q52: 0
B53: 2025 Q2 | C53: 0.0316 | D53: 0.0423 | F53: 2020-06-01 | G53: 2020 | H53: Q2 | I53: 2020 Q2 | J53: 0 | L53: 0.0218 | M53: 0 | N53: 0 | Q53: 0
B54: 2025 Q3 | C54: =C53 -> 0.0316 | D54: 0.0423 | F54: 2020-07-01 | G54: 2020 | H54: Q3 | I54: 2020 Q3 | J54: 0 | L54: 0.0057 | M54: 0 | N54: 0 | Q54: 0
B55: 2025 Q4 | C55: =C54 -> 0.0316 | D55: 0.0423 | F55: 2020-08-01 | G55: 2020 | H55: Q3 | I55: 2020 Q3 | J55: 0 | L55: 0.0057 | M55: 0 | N55: 0 | Q55: 0
B56: 2026 Q1 | C56: 0.0316 | D56: 0.0423 | F56: 2020-09-01 | G56: 2020 | H56: Q3 | I56: 2020 Q3 | J56: 0 | L56: 0.0057 | M56: 0 | N56: 0 | Q56: 0
B57: 2026 Q2 | C57: 0.0316 | D57: 0.0423 | F57: 2020-10-01 | G57: 2020 | H57: Q4 | I57: 2020 Q4 | J57: 0 | L57: 0.0057 | M57: 0 | N57: 0 | Q57: 0
B58: 2026 Q3 | C58: 0.0316 | D58: 0.0423 | F58: 2020-11-01 | G58: 2020 | H58: Q4 | I58: 2020 Q4 | J58: 0 | L58: 0.0057 | M58: 0 | N58: 0 | Q58: 0
B59: 2026 Q4 | C59: 0.0316 | D59: 0.0423 | F59: 2020-12-01 | G59: 2020 | H59: =IF(MONTH(F59)=0,"",IF(MONTH(F59)<4,"Q1",IF(MONTH(F59)<7,"Q2",IF(MONTH(F59)<10,"Q3","Q4")))) -> Q4 | I59: 2020 Q4 | J59: 0 | L59: 0.0057 | M59: 0 | N59: 0 | Q59: 0
F60: 2021-01-01 | G60: 2021 | H60: Q1 | I60: 2021 Q1 | J60: =J59+K59 -> 0 | L60: =VLOOKUP(I60,$B$22:$D$59,2) -> 0.0057 | M60: 0 | N60: 0 | Q60: 0
B61: Note: 2025-2026 Interest rates are forecasted. | F61: 2021-02-01 | G61: 2021 | H61: Q1 | I61: 2021 Q1 | J61: 0 | L61: 0.0057 | M61: 0 | N61: 0 | Q61: 0
F62: 2021-03-01 | G62: 2021 | H62: Q1 | I62: 2021 Q1 | J62: 0 | L62: 0.0057 | M62: 0 | N62: 0 | Q62: 0
F63: 2021-04-01 | G63: 2021 | H63: Q2 | I63: 2021 Q2 | J63: 0 | L63: 0.0057 | M63: 0 | N63: 0 | Q63: 0
F64: 2021-05-01 | G64: 2021 | H64: Q2 | I64: 2021 Q2 | J64: 0 | L64: 0.0057 | M64: 0 | N64: 0 | Q64: 0
F65: 2021-06-01 | G65: 2021 | H65: Q2 | I65: 2021 Q2 | J65: 0 | L65: 0.0057 | M65: 0 | N65: 0 | Q65: 0
F66: 2021-07-01 | G66: 2021 | H66: Q3 | I66: 2021 Q3 | J66: 0 | L66: 0.0057 | M66: 0 | N66: 0 | Q66: 0
F67: 2021-08-01 | G67: 2021 | H67: Q3 | I67: 2021 Q3 | J67: 0 | L67: 0.0057 | M67: 0 | N67: 0 | Q67: 0
F68: 2021-09-01 | G68: 2021 | H68: Q3 | I68: 2021 Q3 | J68: 0 | L68: 0.0057 | M68: 0 | N68: 0 | Q68: 0
F69: 2021-10-01 | G69: 2021 | H69: Q4 | I69: 2021 Q4 | J69: 0 | L69: 0.0057 | M69: 0 | N69: 0 | Q69: 0
F70: 2021-11-01 | G70: 2021 | H70: Q4 | I70: 2021 Q4 | J70: 0 | L70: 0.0057 | M70: 0 | N70: 0 | Q70: 0
F71: 2021-12-01 | G71: 2021 | H71: =IF(MONTH(F71)=0,"",IF(MONTH(F71)<4,"Q1",IF(MONTH(F71)<7,"Q2",IF(MONTH(F71)<10,"Q3","Q4")))) -> Q4 | I71: 2021 Q4 | J71: 0 | L71: 0.0057 | M71: 0 | N71: 0 | Q71: 0
F72: 2022-01-01 | G72: =YEAR(F72) -> 2022 | H72: =IF(MONTH(F72)=0,"",IF(MONTH(F72)<4,"Q1",IF(MONTH(F72)<7,"Q2",IF(MONTH(F72)<10,"Q3","Q4")))) -> Q1 | I72: 2022 Q1 | J72: =J71+K71 -> 0 | L72: =VLOOKUP(I72,$B$22:$D$59,2) -> 0.0057 | M72: =ROUND(J72*L72/12,2) -> 0 | N72: =N71+K72+M72 -> 0 | Q72: =Q71+P72 -> 0
F73: 2022-02-01 | G73: 2022 | H73: Q1 | I73: 2022 Q1 | J73: 0 | L73: 0.0057 | M73: 0 | N73: 0 | Q73: 0
F74: 2022-03-01 | G74: 2022 | H74: Q1 | I74: 2022 Q1 | J74: 0 | L74: 0.0057 | M74: 0 | N74: 0 | Q74: 0
F75: 2022-04-01 | G75: 2022 | H75: Q2 | I75: 2022 Q2 | J75: 0 | L75: 0.0102 | M75: 0 | N75: 0 | Q75: 0
F76: 2022-05-01 | G76: 2022 | H76: Q2 | I76: 2022 Q2 | J76: 0 | L76: 0.0102 | M76: 0 | N76: 0 | Q76: 0
F77: 2022-06-01 | G77: 2022 | H77: Q2 | I77: 2022 Q2 | J77: 0 | L77: 0.0102 | M77: 0 | N77: 0 | Q77: 0
F78: 2022-07-01 | G78: 2022 | H78: Q3 | I78: 2022 Q3 | J78: 0 | L78: 0.022 | M78: 0 | N78: 0 | Q78: 0
F79: 2022-08-01 | G79: 2022 | H79: Q3 | I79: 2022 Q3 | J79: 0 | L79: 0.022 | M79: 0 | N79: 0 | Q79: 0
F80: 2022-09-01 | G80: 2022 | H80: Q3 | I80: 2022 Q3 | J80: 0 | L80: 0.022 | M80: 0 | N80: 0 | Q80: 0
F81: 2022-10-01 | G81: 2022 | H81: Q4 | I81: 2022 Q4 | J81: 0 | L81: 0.0387 | M81: 0 | N81: 0 | Q81: 0
F82: 2022-11-01 | G82: 2022 | H82: Q4 | I82: 2022 Q4 | J82: 0 | L82: 0.0387 | M82: 0 | N82: 0 | Q82: 0
F83: 2022-12-01 | G83: 2022 | H83: =IF(MONTH(F83)=0,"",IF(MONTH(F83)<4,"Q1",IF(MONTH(F83)<7,"Q2",IF(MONTH(F83)<10,"Q3","Q4")))) -> Q4 | I83: 2022 Q4 | J83: 0 | L83: 0.0387 | M83: 0 | N83: 0 | Q83: 0
F84: 2023-01-01 | G84: =YEAR(F84) -> 2023 | H84: =IF(MONTH(F84)=0,"",IF(MONTH(F84)<4,"Q1",IF(MONTH(F84)<7,"Q2",IF(MONTH(F84)<10,"Q3","Q4")))) -> Q1 | I84: 2023 Q1 | J84: =J83+K83 -> 0 | L84: =VLOOKUP(I84,$B$22:$D$59,2) -> 0.0473 | M84: =ROUND(J84*L84/12,2) -> 0 | N84: =N83+K84+M84 -> 0 | Q84: =Q83+P84 -> 0
F85: 2023-02-01 | G85: 2023 | H85: Q1 | I85: 2023 Q1 | J85: 0 | L85: 0.0473 | M85: 0 | N85: 0 | Q85: 0
F86: 2023-03-01 | G86: 2023 | H86: Q1 | I86: 2023 Q1 | J86: 0 | L86: 0.0473 | M86: 0 | N86: 0 | Q86: 0
F87: 2023-04-01 | G87: 2023 | H87: Q2 | I87: 2023 Q2 | J87: 0 | L87: 0.0498 | M87: 0 | N87: 0 | Q87: 0
F88: 2023-05-01 | G88: 2023 | H88: Q2 | I88: 2023 Q2 | J88: 0 | L88: 0.0498 | M88: 0 | N88: 0 | Q88: 0
F89: 2023-06-01 | G89: 2023 | H89: Q2 | I89: =CONCATENATE(G89," ",H89) -> 2023 Q2 | J89: 0 | L89: 0.0498 | M89: 0 | N89: 0 | Q89: 0
F90: 2023-07-01 | G90: 2023 | H90: Q3 | I90: 2023 Q3 | J90: 0 | L90: 0.0498 | M90: 0 | N90: 0 | Q90: 0
F91: 2023-08-01 | G91: 2023 | H91: Q3 | I91: 2023 Q3 | J91: 0 | L91: 0.0498 | M91: 0 | N91: 0 | Q91: 0
F92: 2023-09-01 | G92: 2023 | H92: Q3 | I92: 2023 Q3 | J92: 0 | L92: 0.0498 | M92: 0 | N92: 0 | Q92: 0
F93: 2023-10-01 | G93: 2023 | H93: Q4 | I93: 2023 Q4 | J93: 0 | L93: 0.0549 | M93: 0 | N93: 0 | Q93: 0
F94: 2023-11-01 | G94: 2023 | H94: Q4 | I94: 2023 Q4 | J94: 0 | L94: 0.0549 | M94: 0 | N94: 0 | Q94: 0
F95: 2023-12-01 | G95: 2023 | H95: =IF(MONTH(F95)=0,"",IF(MONTH(F95)<4,"Q1",IF(MONTH(F95)<7,"Q2",IF(MONTH(F95)<10,"Q3","Q4")))) -> Q4 | I95: 2023 Q4 | J95: 0 | L95: 0.0549 | M95: 0 | N95: 0 | Q95: 0
F96: 2024-01-01 | G96: =YEAR(F96) -> 2024 | H96: =IF(MONTH(F96)=0,"",IF(MONTH(F96)<4,"Q1",IF(MONTH(F96)<7,"Q2",IF(MONTH(F96)<10,"Q3","Q4")))) -> Q1 | I96: 2024 Q1 | J96: =J95+K95 -> 0 | L96: =VLOOKUP(I96,$B$22:$D$59,2) -> 0.0549 | M96: =ROUND(J96*L96/12,2) -> 0 | N96: =N95+K96+M96 -> 0 | Q96: =Q95+P96 -> 0
F97: 2024-02-01 | G97: 2024 | H97: Q1 | I97: 2024 Q1 | J97: 0 | L97: 0.0549 | M97: 0 | N97: 0 | Q97: 0
F98: 2024-03-01 | G98: 2024 | H98: Q1 | I98: 2024 Q1 | J98: 0 | K98: 40970.69 | L98: 0.0549 | M98: 0 | N98: 40970.69 | P98: ='6. ICMIRR_2024'!$K$88/12 -> 101969.5428 | Q98: 101969.5428
F99: 2024-04-01 | G99: 2024 | H99: Q2 | I99: 2024 Q2 | J99: 40970.69 | K99: 187418.32 | L99: 0.0549 | M99: 187.44 | N99: 228576.45 | P99: ='6. ICMIRR_2024'!$K$88/12 -> 101969.5428 | Q99: 203939.0856
F100: 2024-05-01 | G100: 2024 | H100: Q2 | I100: 2024 Q2 | J100: 228389.01 | K100: 122872.47 | L100: 0.0549 | M100: 1044.88 | N100: 352493.8 | P100: ='6. ICMIRR_2024'!$K$88/12 -> 101969.5428 | Q100: 305908.6284
F101: 2024-06-01 | G101: 2024 | H101: Q2 | I101: 2024 Q2 | J101: 351261.48 | K101: 122101.56 | L101: 0.0549 | M101: 1607.02 | N101: 476202.38 | P101: ='6. ICMIRR_2024'!$K$88/12 -> 101969.5428 | Q101: 407878.1713
F102: 2024-07-01 | G102: 2024 | H102: Q3 | I102: 2024 Q3 | J102: 473363.04 | K102: 124489.94 | L102: 0.052 | M102: 2051.24 | N102: 602743.56 | P102: ='6. ICMIRR_2024'!$K$88/12 -> 101969.5428 | Q102: 509847.7141
F103: 2024-08-01 | G103: 2024 | H103: Q3 | I103: 2024 Q3 | J103: 597852.98 | K103: 124923.42 | L103: 0.052 | M103: 2590.7 | N103: 730257.68 | P103: ='6. ICMIRR_2024'!$K$88/12 -> 101969.5428 | Q103: 611817.2569
F104: 2024-09-01 | G104: 2024 | H104: Q3 | I104: 2024 Q3 | J104: 722776.4 | K104: 119344.95 | L104: 0.052 | M104: 3132.03 | N104: 852734.66 | P104: ='6. ICMIRR_2024'!$K$88/12 -> 101969.5428 | Q104: 713786.7997
F105: 2024-10-01 | G105: 2024 | H105: Q4 | I105: 2024 Q4 | J105: 842121.35 | K105: 117806.66 | L105: 0.044 | M105: 3087.78 | N105: 973629.1 | P105: ='6. ICMIRR_2024'!$K$88/12 -> 101969.5428 | Q105: 815756.3425
F106: 2024-11-01 | G106: 2024 | H106: Q4 | I106: 2024 Q4 | J106: 959928.01 | K106: 118558.09 | L106: 0.044 | M106: 3519.74 | N106: 1095706.93 | P106: ='6. ICMIRR_2024'!$K$88/12 -> 101969.5428 | Q106: 917725.8853
F107: 2024-12-01 | G107: 2024 | H107: =IF(MONTH(F107)=0,"",IF(MONTH(F107)<4,"Q1",IF(MONTH(F107)<7,"Q2",IF(MONTH(F107)<10,"Q3","Q4")))) -> Q4 | I107: 2024 Q4 | J107: 1078486.1 | K107: 119534.41 | L107: 0.044 | M107: 3954.45 | N107: 1219195.79 | P107: ='6. ICMIRR_2024'!$K$88/12 -> 101969.5428 | Q107: 1019695.428
F108: 2025-01-01 | G108: =YEAR(F108) -> 2025 | H108: =IF(MONTH(F108)=0,"",IF(MONTH(F108)<4,"Q1",IF(MONTH(F108)<7,"Q2",IF(MONTH(F108)<10,"Q3","Q4")))) -> Q1 | I108: 2025 Q1 | J108: =J107+K107 -> 1198020.51 | K108: 114808.46 | L108: =VLOOKUP(I108,$B$22:$D$59,2) -> 0.0364 | M108: =ROUND(J108*L108/12,2) -> 3634 | N108: =N107+K108+M108 -> 1337638.25 | P108: ='6. ICMIRR_2024'!$K$88/12 -> 101969.5428 | Q108: =Q107+P108 -> 1121664.971
F109: 2025-02-01 | G109: 2025 | H109: Q1 | I109: 2025 Q1 | J109: 1312828.97 | K109: 84948.13 | L109: 0.0364 | M109: 3982.25 | N109: 1426568.63 | P109: ='6. ICMIRR_2024'!$K$88/12 -> 101969.5428 | Q109: 1223634.514
F110: 2025-03-01 | G110: 2025 | H110: Q1 | I110: 2025 Q1 | J110: 1397777.1 | K110: 104254.23 | L110: 0.0364 | M110: 4239.92 | N110: 1535062.78 | P110: ='6. ICMIRR_2024'!$K$88/12 -> 101969.5428 | Q110: 1325604.057
F111: 2025-04-01 | G111: 2025 | H111: Q2 | I111: 2025 Q2 | J111: 1502031.33 | K111: 98314.35 | L111: 0.0316 | M111: 3955.35 | N111: 1637332.48 | P111: ='6. ICMIRR_2024'!$K$88/12 -> 101969.5428 | Q111: 1427573.599
F112: 2025-05-01 | G112: 2025 | H112: Q2 | I112: 2025 Q2 | J112: 1600345.68 | K112: 102535.5583 | L112: =VLOOKUP(I112,$B$22:$D$59,2) -> 0.0316 | M112: 4214.24 | N112: 1744082.278 | P112: ='6. ICMIRR_2024'!$K$88/12 -> 101969.5428 | Q112: 1529543.142
F113: 2025-06-01 | G113: 2025 | H113: Q2 | I113: 2025 Q2 | J113: 1702881.238 | K113: 103851.1953 | L113: 0.0316 | M113: 4484.25 | N113: 1852417.724 | P113: ='6. ICMIRR_2024'!$K$88/12 -> 101969.5428 | Q113: 1631512.685
F114: 2025-07-01 | G114: 2025 | H114: Q3 | I114: 2025 Q3 | J114: 1806732.434 | K114: 110000.7554 | L114: 0.0316 | M114: 4757.73 | N114: 1967176.209 | P114: ='6. ICMIRR_2024'!$K$88/12 -> 101969.5428 | Q114: 1733482.228
F115: 2025-08-01 | G115: 2025 | H115: Q3 | I115: 2025 Q3 | J115: 1916733.189 | K115: 105068.5694 | L115: 0.0316 | M115: 5047.4 | N115: 2077292.178 | P115: ='6. ICMIRR_2024'!$K$88/12 -> 101969.5428 | Q115: 1835451.771
F116: 2025-09-01 | G116: 2025 | H116: Q3 | I116: 2025 Q3 | J116: 2021801.758 | K116: 99872.42912 | L116: 0.0316 | M116: 5324.08 | N116: 2182488.687 | P116: ='6. ICMIRR_2024'!$K$88/12 -> 101969.5428 | Q116: 1937421.314
F117: 2025-10-01 | G117: 2025 | H117: Q4 | I117: 2025 Q4 | J117: 2121674.187 | K117: 103096.401 | L117: 0.0316 | M117: 5587.08 | N117: 2291172.168 | P117: ='6. ICMIRR_2024'!$K$88/12 -> 101969.5428 | Q117: 2039390.856
F118: 2025-11-01 | G118: 2025 | H118: Q4 | I118: 2025 Q4 | J118: 2224770.588 | K118: 101465.3222 | L118: 0.0316 | M118: 5858.56 | N118: 2398496.051 | P118: ='6. ICMIRR_2024'!$K$88/12 -> 101969.5428 | Q118: 2141360.399
F119: 2025-12-01 | G119: 2025 | H119: =IF(MONTH(F119)=0,"",IF(MONTH(F119)<4,"Q1",IF(MONTH(F119)<7,"Q2",IF(MONTH(F119)<10,"Q3","Q4")))) -> Q4 | I119: 2025 Q4 | J119: 2326235.911 | K119: 104312.344 | L119: 0.0316 | M119: 6125.75 | N119: 2508934.145 | P119: ='6. ICMIRR_2024'!$K$88/12 -> 101969.5428 | Q119: 2243329.942
F120: 2026-01-01 | G120: =YEAR(F120) -> 2026 | H120: =IF(MONTH(F120)=0,"",IF(MONTH(F120)<4,"Q1",IF(MONTH(F120)<7,"Q2",IF(MONTH(F120)<10,"Q3","Q4")))) -> Q1 | I120: 2026 Q1 | J120: =J119+K119 -> 2430548.255 | K120: 104258.7973 | L120: =VLOOKUP(I120,$B$22:$D$59,2) -> 0.0316 | M120: =ROUND(J120*L120/12,2) -> 6400.44 | N120: =N119+K120+M120 -> 2619593.382 | P120: ='6. ICMIRR_2024'!$K$88/12 -> 101969.5428 | Q120: =Q119+P120 -> 2345299.485
F121: 2026-02-01 | G121: 2026 | H121: Q1 | I121: 2026 Q1 | J121: 2534807.052 | K121: 93768.73547 | L121: 0.0316 | M121: 6674.99 | N121: 2720037.107 | P121: ='6. ICMIRR_2024'!$K$88/12 -> 101969.5428 | Q121: 2447269.028
F122: 2026-03-01 | G122: 2026 | H122: Q1 | I122: 2026 Q1 | J122: 2628575.787 | K122: 102604.1292 | L122: 0.0316 | M122: 6921.92 | N122: 2829563.157 | P122: ='6. ICMIRR_2024'!$K$88/12 -> 101969.5428 | Q122: 2549238.57
F123: 2026-04-01 | G123: 2026 | H123: Q2 | I123: 2026 Q2 | J123: 2731179.917 | K123: 100389.5225 | L123: 0.0316 | M123: 7192.11 | N123: 2937144.789 | P123: ='6. ICMIRR_2024'!$K$88/12 -> 101969.5428 | Q123: 2651208.113
F124: 2026-05-01 | G124: 2026 | H124: Q2 | I124: 2026 Q2 | J124: 2831569.439 | K124: 103208.889 | L124: 0.0316 | M124: 7456.47 | N124: 3047810.148 | P124: ='6. ICMIRR_2024'!$K$88/12 -> 101969.5428 | Q124: 2753177.656
F125: 2026-06-01 | G125: 2026 | H125: Q2 | I125: 2026 Q2 | J125: 2934778.328 | K125: 104559.0569 | L125: 0.0316 | M125: 7728.25 | N125: 3160097.455 | P125: ='6. ICMIRR_2024'!$K$88/12 -> 101969.5428 | Q125: 2855147.199
F126: 2026-07-01 | G126: 2026 | H126: Q3 | I126: 2026 Q3 | J126: 3039337.385 | K126: 110780.334 | L126: 0.0316 | M126: 8003.59 | N126: 3278881.379 | P126: ='6. ICMIRR_2024'!$K$88/12 -> 101969.5428 | Q126: 2957116.742
F127: 2026-08-01 | G127: 2026 | H127: Q3 | I127: 2026 Q3 | J127: 3150117.719 | K127: 105787.6242 | L127: 0.0316 | M127: 8295.31 | N127: 3392964.313 | P127: ='6. ICMIRR_2024'!$K$88/12 -> 101969.5428 | Q127: 3059086.284
F128: 2026-09-01 | G128: 2026 | H128: Q3 | I128: 2026 Q3 | J128: 3255905.343 | K128: 100503.5129 | L128: 0.0316 | M128: 8573.88 | N128: 3502041.706 | P128: ='6. ICMIRR_2024'!$K$88/12 -> 101969.5428 | Q128: 3161055.827
F129: 2026-10-01 | G129: 2026 | H129: Q4 | I129: 2026 Q4 | J129: 3356408.856 | K129: 103727.4264 | L129: 0.0316 | M129: 8838.54 | N129: 3614607.673 | P129: ='6. ICMIRR_2024'!$K$88/12 -> 101969.5428 | Q129: 3263025.37
F130: 2026-11-01 | G130: 2026 | H130: Q4 | I130: 2026 Q4 | J130: 3460136.283 | K130: 102094.4251 | L130: 0.0316 | M130: 9111.69 | N130: 3725813.788 | P130: ='6. ICMIRR_2024'!$K$88/12 -> 101969.5428 | Q130: 3364994.913
F131: 2026-12-01 | G131: 2026 | H131: =IF(MONTH(F131)=0,"",IF(MONTH(F131)<4,"Q1",IF(MONTH(F131)<7,"Q2",IF(MONTH(F131)<10,"Q3","Q4")))) -> Q4 | I131: 2026 Q4 | J131: 3562230.708 | K131: 104950.4687 | L131: 0.0316 | M131: 9380.54 | N131: 3840144.796 | P131: ='6. ICMIRR_2024'!$K$88/12 -> 101969.5428 | Q131: 3466964.456

Sheet 8. Opex Interest Annual
B13: This worksheet calculates the interest on amortization/depreciation expense, in the absence of monthly data.
B16: Sheet 8: Interest on Amortization (Annual Data)
B21: Year | D21: OM&A | F21: Amortization Expense | H21: Cumulative OM&A and Amortization Expense | J21: Average Cumulative OM&A and Amortization Expense | L21: Average Annual Prescribed Interest Rate for Deferral and Variance Accounts (from Sheet 7) | N21: Simple Interest on OM&A and Amortization Expenses
F22: (from Sheet 4)
B23: 2018 | D23: 0 | H23: =D23+F23 -> 0 | J23: =H23/2 -> 0 | L23: =AVERAGE('7. Rate Riders Revs'!C24:C27) -> 0.018625 | N23: =J23*L23 -> 0
B24: 2019 | D24: 0 | H24: =H23+D24+F24 -> 0 | J24: =(H24+H23)/2 -> 0 | L24: =AVERAGE('7. Rate Riders Revs'!C28:C31) -> 0.022475 | N24: =J24*L24 -> 0
B25: 2020 | D25: 0 | H25: =H24+D25+F25 -> 0 | J25: =(H25+H24)/2 -> 0 | L25: =AVERAGE('7. Rate Riders Revs'!C32:C35) -> 0.01375 | N25: 0
B26: 2021 | D26: 0 | H26: 0 | J26: 0 | L26: =AVERAGE('7. Rate Riders Revs'!C36:C39) -> 0.0057 | N26: 0
B27: 2022 | D27: 0 | H27: =H26+D27+F27 -> 0 | J27: 0 | L27: =AVERAGE('7. Rate Riders Revs'!C40:C43) -> 0.01915 | N27: 0
B28: 2023 | D28: 0 | H28: 0 | J28: 0 | L28: =AVERAGE('7. Rate Riders Revs'!C44:C47) -> 0.05045 | N28: 0
B29: 2024 | D29: 0 | F29: =-'4. ICM_Assets_and_Rate_Base'!I357 -> 315893.8943 | H29: 315893.8943 | J29: 157946.9472 | L29: =AVERAGE('7. Rate Riders Revs'!C48:C51) -> 0.05145 | N29: 8126.370431
B30: 2025 | D30: 0 | F30: =-'4. ICM_Assets_and_Rate_Base'!K357 -> 463418.6242 | H30: 779312.5185 | J30: 547603.2064 | L30: =AVERAGE('7. Rate Riders Revs'!C52:C55) -> 0.0328 | N30: 17961.38517
B31: 2026 | D31: 0 | F31: =F30 -> 463418.6242 | H31: 1242731.143 | J31: 1011021.831 | L31: =AVERAGE('7. Rate Riders Revs'!C56:C59) -> 0.0316 | N31: =J31*L31 -> 31948.28985
B34: Cumulative Interest to 2018 | N34: =SUM($N$23:N23) -> 0
B35: Cumulative Interest to 2019 | N35: =SUM($N$23:N24) -> 0
B36: Cumulative Interest to 2020 | N36: =SUM($N$23:N25) -> 0
B37: Cumulative Interest to 2021 | N37: =SUM($N$23:N26) -> 0
B38: Cumulative Interest to 2022 | N38: =SUM($N$23:N27) -> 0
B39: Cumulative Interest to 2023 | N39: =SUM($N$23:N28) -> 0
B40: Cumulative Interest to 2024 | N40: =SUM($N$23:N29) -> 8126.370431
B41: Cumulative Interest to 2025 | N41: =SUM($N$23:N30) -> 26087.7556
B42: Cumulative Interest to 2026 | N42: =SUM($N$23:N31) -> 58036.04545

Sheet 9. IRR
B14: This worksheet calculates the ICM Incremental Revenue Requirement.
B17: Sheet 9: ICM Incremental Revenue Requirement
G20: 2018 | I20: 2019 | K20: 2020 | M20: 2021 | O20: 2022 | Q20: 2023 | S20: 2024 | U20: 2025 | W20: 2026 | Y20: Total
C22: Deferred and forecasted ICM Incremental Revenue Requirement (from Sheet 6) | S22: ='6. ICMIRR_2024'!$F$88 -> 995156.5877 | U22: ='6. ICMIRR_2024'!$F$88 -> 995156.5877 | W22: ='6. ICMIRR_2024'!$F$88 -> 995156.5877 | Y22: =SUM(G22:W22) -> 2985469.763
C24: Interest on Deferred and forecasted Amortization Expense (Sheet 8) | G24: ='8. Opex Interest Annual'!$N$23 -> 0 | I24: ='8. Opex Interest Annual'!$N$24 -> 0 | K24: ='8. Opex Interest Annual'!$N$25 -> 0 | M24: ='8. Opex Interest Annual'!$N$26 -> 0 | O24: ='8. Opex Interest Annual'!$N$27 -> 0 | Q24: ='8. Opex Interest Annual'!$N$28 -> 0 | S24: ='8. Opex Interest Annual'!$N$29 -> 8126.370431 | U24: ='8. Opex Interest Annual'!$N$30 -> 17961.38517 | W24: ='8. Opex Interest Annual'!$N$31 -> 31948.28985 | Y24: =SUM(G24:W24) -> 58036.04545
C27: ICM Rate Rider Revenues (from Sheet 7) | G27: =SUM('7. Rate Riders Revs'!K26:K35) -> 0 | I27: =SUM('7. Rate Riders Revs'!K36:K47) -> 0 | K27: =SUM('7. Rate Riders Revs'!K48:K59) -> 0 | M27: =SUM('7. Rate Riders Revs'!K60:K71) -> 0 | O27: =SUM('7. Rate Riders Revs'!K72:K83) -> 0 | Q27: =SUM('7. Rate Riders Revs'!K84:K95) -> 0 | S27: =SUM('7. Rate Riders Revs'!K96:K107) -> 1198020.51 | U27: =SUM('7. Rate Riders Revs'!K108:K119) -> 1232527.745 | W27: =SUM('7. Rate Riders Revs'!K120:K131) -> 1236632.922 | Y27: =SUM(G27:W27) -> 3667181.176
C29: ICM Rate Rider Interest (from Sheet 7) | G29: =SUM('7. Rate Riders Revs'!M27:M35) -> 0 | I29: =SUM('7. Rate Riders Revs'!M36:M47) -> 0 | K29: =SUM('7. Rate Riders Revs'!M48:M59) -> 0 | M29: =SUM('7. Rate Riders Revs'!M60:M71) -> 0 | O29: =SUM('7. Rate Riders Revs'!M72:M83) -> 0 | Q29: =SUM('7. Rate Riders Revs'!M84:M95) -> 0 | S29: =SUM('7. Rate Riders Revs'!M96:M107) -> 21175.28 | U29: =SUM('7. Rate Riders Revs'!M108:M119) -> 57210.61 | W29: =SUM('7. Rate Riders Revs'!M120:M131) -> 94577.73 | Y29: =SUM(G29:W29) -> 172963.62
C31: Net Deferred Revenue Requirement | G31: =(G22+G24)-(G27+G29) -> 0 | I31: =(I22+I24)-(I27+I29) -> 0 | K31: =(K22+K24)-(K27+K29) -> 0 | M31: =(M22+M24)-(M27+M29) -> 0 | O31: =(O22+O24)-(O27+O29) -> 0 | Q31: =(Q22+Q24)-(Q27+Q29) -> 0 | S31: =(S22+S24)-(S27+S29) -> -215912.8319 | U31: =(U22+U24)-(U27+U29) -> -276620.3818 | W31: =(W22+W24)-(W27+W29) -> -304105.774 | Y31: =(Y22+Y24)-(Y27+Y29) -> -796638.9877
